Cogmind - Beta 12 X1 @@@ ROGUE MODE // 2022.07.22 @ 21:04:01 Player: leiavoia Result: Destroyed by S-43 Plague with Heavy Machine Gun Performance ------------- Evolutions (7) 3500 Regions Visited (32) 6400 Robots Destroyed (1057) 5285 Value Destroyed (43230) 43230 Prototype IDs (63) 1260 Alien Tech Used (3) 600 Bonus (31224) 31224 TOTAL SCORE: 91499 Bonus ------- Triggered High Security 2000 High Alert Combat Kills 27774 Follower Combat Kills 894 Entered Garrisons 400 Used RIF Installer 1500 Met Data Miner 300 Met Zhirov 300 Friendly Fire -1944 Cogmind --------- Core Integrity 0/1300 Matter 18/300 Energy 99/100 System Corruption 15% Temperature Cool (0) Movement Core (50) Location -3/Quarantine Parts ------- > --- POWER (2) -------- (None) > --- PROPULSION (6) --- (None) > --- UTILITY (10) ----- (None) > --- WEAPON (3) ------- (None) > --- INVENTORY (5) ---- Huge Storage Unit Advanced Energy Well (500) Remote Force Field Heavy Gauss Cannon Peak State ------------ > --- POWER ------------ Reinforced Fission Core Enhanced Fission Core > --- PROPULSION ------- Improved Heavy Treads Improved Heavy Treads Heavy Siege Treads > --- UTILITY ---------- Improved Cooling System Cargo Storage Unit Active Sensor Suite Makeshift Terrain Scan Processor Improved Light Armor Plating Advanced Hacking Suite Advanced Component Analysis Suite > --- WEAPON ----------- Enhanced Gauss Cannon Heavy Gauss Cannon Heavy Gauss Cannon > --- INVENTORY -------- Micro Fission Core Armored Medium Treads Armored Medium Treads Armored Medium Treads Biometal Medium Treads Cooled Nuclear Pulse Thruster Diametric Drive Diametric Drive Medium Storage Unit Huge Storage Unit Huge Storage Unit Advanced Energy Well Matter Compressor Improved Kinecellerator Hardened Light Armor Plating Layered Heavy Armor Plating Layered Heavy Armor Plating Focal Shield Improved Thermal Shield Improved Force Field Remote Force Field Transdimensional Reconstructor HERF Cannon Heavy Plasma Cannon Advanced Plasma Cannon Tri-rail Accelerator Micro-nuke Launcher [Rating: 147] Favorites ----------- Power Enhanced Fission Core Engine Improved Deuterium Engine Power Core Enhanced Fission Core Reactor Antimatter Reactor Propulsion Improved Heavy Treads Treads Improved Heavy Treads Leg Improved Titanium Leg Wheel Armored Huge Wheel Hover Unit Antigrav System Flight Unit Xenon Bombardment Thruster Utility Cargo Storage Unit Device Improved Cooling System Storage Cargo Storage Unit Processor Enhanced Optical Array Hackware Improved Hacking Suite Protection Layered Medium Armor Plating Artifact Phase Redirector Weapon Tri-rail Accelerator Energy Gun Improved Medium Laser Energy Cannon Heavy Plasma Cannon Ballistic Gun Assault Rifle Ballistic Cannon Tri-rail Accelerator Launcher Long-range Missile Launcher Special Weapon Remote Datajack Impact Weapon Heavy Flail Slashing Weapon Great Axe Piercing Weapon Heavy Pick Build | -11 -10 -10 -9 -9 -9 -8 -8 -8 -8 -8 -7 -7 -7 -7 -6 -6 -6 -6 -6 -5 -5 -5 -5 -5 -4 -4 -4 -4 -4 -3 -3 -3 ------- Run | Scr Mat Min Mat Min Exi Min Mat Gar Mat Gar Fac Low Low Zio Pro Fac Low Low Dat Pro Fac Upp Upp War Pro Fac Upp Upp Zhi Pro Res Qua Slots Evolved 14 | . . . 2 . . . 2 . . . 2 . . . . 2 . . . . 2 . . . . 2 . . . . 2 . Power 1 | . . . . . . . . . . . . . . . . . . . . . 1 . . . . . . . . . . . Propulsion 4 | . . . 1 . . . 1 . . . . . . . . . . . . . . . . . . 2 . . . . . . Utility 8 | . . . 1 . . . 1 . . . 2 . . . . 1 . . . . 1 . . . . . . . . . 2 . Weapon 1 | . . . . . . . . . . . . . . . . 1 . . . . . . . . . . . . . . . . Parts Attached 1198 | 3 21 7 34 6 . 8 42 36 . 15 215 7 7 4 10 193 20 11 . 15 220 18 4 2 8 196 12 14 14 16 37 3 Power 78 | . 4 . 2 1 . 1 3 2 . 1 6 . . . 1 7 3 . . 2 19 . . . 1 17 . . 2 . 6 . Engine 28 | . 4 . 2 1 . 1 3 . . . 6 . . . . 2 3 . . 1 5 . . . . . . . . . . . Core 42 | . . . . . . . . 2 . 1 . . . . 1 5 . . . 1 13 . . . 1 14 . . 1 . 3 . Reactor 8 | . . . . . . . . . . . . . . . . . . . . . 1 . . . . 3 . . 1 . 3 . Propulsion 152 | . 8 2 9 1 . 4 10 9 . 1 16 . . . . 21 2 . . . 27 . . . . 35 1 . . . 6 . Treads 80 | . 8 2 5 1 . 3 5 9 . 1 6 . . . . 5 2 . . . 4 . . . . 23 1 . . . 5 . Leg 9 | . . . 3 . . 1 5 . . . . . . . . . . . . . . . . . . . . . . . . . Wheel 7 | . . . 1 . . . . . . . 2 . . . . 4 . . . . . . . . . . . . . . . . Hover 12 | . . . . . . . . . . . . . . . . . . . . . 11 . . . . 1 . . . . . . Flight 44 | . . . . . . . . . . . 8 . . . . 12 . . . . 12 . . . . 11 . . . . 1 . Utility 609 | 2 3 1 15 . . 3 12 11 . 5 109 5 5 2 4 124 11 4 . 7 128 10 2 . 3 99 5 7 7 10 14 1 Device 363 | 2 1 1 4 . . . 2 3 . . 54 4 2 2 2 90 2 2 . 3 86 7 1 . 3 62 4 6 3 8 9 . Storage 29 | . 1 . . . . . . 2 . . 5 . . . . 10 1 . . . 4 . . . . 5 . . 1 . . . Processor 15 | . . . . . . . . . . . 1 . . . . 6 1 . . . 1 . . . . 4 . . 1 1 . . Hackware 25 | . . . 1 . . . . . . 4 3 . . . . 5 . . . 1 7 . . . . 3 . . . . 1 . Protection 176 | . 1 . 10 . . 3 10 6 . 1 46 1 3 . 2 13 7 2 . 3 30 3 1 . . 25 1 1 2 1 4 . Artifact 1 | . . . . . . . . . . . . . . . . . . . . . . . . . . . . . . . . 1 Weapon 359 | 1 6 4 8 4 . . 17 14 . 8 84 2 2 2 5 41 4 7 . 6 46 8 2 2 4 45 6 7 5 6 11 2 Energy Gun 42 | . 3 2 1 2 . . 8 5 . 2 11 1 1 1 1 . . . . . 1 . . . . 1 1 . . . . 1 Energy Cannon 108 | . . 1 3 1 . . 4 1 . 1 24 . . 1 1 8 2 3 . 3 16 4 1 1 2 15 3 3 3 4 3 . Ballistic Gun 3 | 1 1 . . . . . . 1 . . . . . . . . . . . . . . . . . . . . . . . . Ballistic Cannon 71 | . 1 . 1 . . . . . . . 10 . . . . 16 1 1 . 1 19 . . 1 . 13 . . 1 . 5 1 Launcher 87 | . 1 1 . 1 . . 1 3 . 2 24 1 1 . 2 12 . 1 . 2 5 4 1 . 2 14 2 3 . 2 2 . Special Weapon 15 | . . . . . . . 1 1 . 2 4 . . . . 1 . . . . 1 . . . . 2 . 1 1 . 1 . Impact Weapon 25 | . . . 3 . . . 3 3 . 1 11 . . . 1 2 . . . . 1 . . . . . . . . . . . Slashing Weapon 5 | . . . . . . . . . . . . . . . . . 1 1 . . 3 . . . . . . . . . . . Piercing Weapon 3 | . . . . . . . . . . . . . . . . 2 . 1 . . . . . . . . . . . . . . Special Melee Weapon . | . . . . . . . . . . . . . . . . . . . . . . . . . . . . . . . . . Unidentified Prototypes 17 | . . . . . . . . . . . 2 . . 1 . 1 . . . . 4 . . . . 4 . . 3 . 1 1 Corrupted Parts 12 | . . 1 . . . . . 4 . . . . . . . . . . . . . . . . . 6 1 . . . . . System Corruption 74 | . . 9 . . . . . 25 . . . . . . . . . . . . . . . . . 39 1 . . . . . Parts Lost 108 | . 1 4 2 2 . 5 3 1 . 1 12 . . . . 12 2 . . . 12 . . . . 31 . 1 . 2 16 1 Power 15 | . . . . 1 . 1 . . . . 2 . . . . 2 1 . . . 2 . . . . 4 . . . . 2 . Propulsion 30 | . 1 2 1 . . 3 1 . . . 3 . . . . 6 . . . . 4 . . . . 6 . . . . 3 . Utility 45 | . . . . . . 1 1 . . 1 6 . . . . 4 1 . . . 5 . . . . 18 . . . 1 7 . Weapon 18 | . . 2 1 1 . . 1 1 . . 1 . . . . . . . . . 1 . . . . 3 . 1 . 1 4 1 Highest Loss Streak 15 | . 1 4 1 1 . 2 2 1 . 1 5 . . . . 3 2 . . . 1 . . . . 7 . 1 . 2 15 1 To Critical Strikes 3 | . . . . . . . . . . . 1 . . . . 1 . . . . . . . . . . . . . . 1 . Average Slot Usage (%) 79 | . 99 98 99 100 100 99 98 86 72 71 83 76 76 73 74 79 79 80 80 80 74 70 69 67 70 77 58 56 46 56 63 . Engine 4 | . 13 14 11 11 11 10 9 6 . . 6 7 7 7 6 . 4 6 6 5 2 . . . . . . . . . . . Core 4 | . . . . . . . . 2 9 8 . . . . . 5 1 . . . 7 11 11 11 11 9 10 10 9 10 7 . Treads 13 | . 23 27 19 33 33 32 19 23 18 17 14 . . . . 9 8 13 13 13 8 11 11 11 11 13 16 15 15 15 13 . Wheel 1 | . . . 7 . . . . . . . 1 15 15 15 15 1 4 . . . . . . . . . . . . . . . Flight 2 | . . . . . . . . . . . 6 . . . . 8 . . . . 1 . . . . 6 . . . . . . Device 13 | . 3 . 11 11 11 11 10 9 9 4 14 21 22 23 21 12 14 12 13 10 15 17 17 17 17 19 10 9 8 9 12 . Storage 6 | . 14 14 11 11 11 11 9 9 9 9 6 7 7 7 7 5 6 6 6 6 4 5 5 5 5 5 5 5 5 5 3 . Processor 2 | . . . . . . . . . . . 1 . . . . 7 6 6 6 6 2 . . . . 2 . . . . 1 . Hackware 2 | . . . 1 . . . . . . 6 2 . . . . 5 . . . 4 7 . . . . 4 . . . . 3 . Protection 8 | . 10 13 9 11 11 10 16 11 9 7 12 8 7 7 7 4 11 13 13 9 8 10 10 11 11 4 5 5 4 5 5 . Energy Gun 3 | . 11 24 1 14 22 22 12 10 9 6 2 6 6 5 6 . . . . . . . . . . . . . . . . . Energy Cannon 5 | . . 1 17 6 . . 4 2 . 2 3 7 7 6 6 5 9 12 13 10 2 4 4 3 4 2 4 3 1 6 4 . Ballistic Cannon 3 | . 7 . . . . . . . . . . . . . . 3 5 6 6 6 4 5 5 3 5 5 5 5 . 1 6 . Launcher 1 | . . 1 . . . . . . . 1 3 . . . . 2 3 . . 1 1 . . . . 1 . . . . . . Naked Turns 101 | . . . . . . . . . . . . . . . . . . . . . . . . . . . . . . . 35 66 Heaviest Build 253 | 12 94 94 105 105 104 104 110 168 168 171 253 195 177 175 190 222 200 210 190 208 216 211 211 211 222 222 232 241 230 230 247 5 Greatest Support 225 | 20 40 40 63 63 63 63 80 150 150 150 150 56 56 56 56 150 150 150 150 150 150 150 150 150 150 225 220 220 220 220 225 3 Greatest Overweight (x) 8 | . 4 2 8 1 1 1 2 1 1 1 6 3 3 3 3 6 3 1 1 1 3 1 1 1 1 2 1 1 1 1 1 1 Average Overweight (x) . | . 1 2 5 1 1 1 1 1 1 1 . 3 3 2 3 . 1 1 1 1 . 1 1 1 1 . 1 . . . . . Largest Inventory Capacity 30 | 8 25 25 25 25 25 25 25 30 30 30 30 30 30 30 30 30 30 30 30 30 30 30 30 30 30 30 30 30 30 30 30 5 Average Capacity 25 | 8 19 25 25 25 25 25 25 28 30 30 22 30 30 30 30 19 30 30 30 30 22 30 30 30 30 22 30 30 30 30 28 5 Most Carried 30 | 7 25 25 25 25 25 25 25 30 30 30 30 30 30 30 30 30 30 30 30 30 30 30 30 30 30 30 30 30 30 30 30 5 Average Carried 24 | 6 16 24 24 24 24 24 24 28 30 29 21 29 30 29 29 18 29 29 30 29 21 29 29 30 29 20 29 29 29 29 26 4 Final Capacity 30 | 8 25 25 25 25 25 25 25 30 30 30 30 30 30 30 30 30 30 30 30 30 30 30 30 30 30 30 30 30 30 30 30 5 Final Carried 30 | 7 25 23 25 24 25 25 25 30 30 30 30 30 30 30 30 30 30 30 30 30 30 30 30 30 30 30 30 30 30 30 30 4 Class Distribution -------------------- 34% | Mutant 29% | Hauler-Mutant 9% | Hauler-Tank 4% | Hauler-Skirmisher 4% | Hacker-Mutant 3% | Hacker-Scout Dominant Class ---------------- Mutant | -10/Materials Mutant | -10/Mines Mutant | -9/Materials Mutant | -9/Mines Mutant | -9/Exiles Mutant | -8/Mines Scavenger-Mutant | -8/Materials Hauler-Mutant | -8/Garrison Hauler-Mutant | -8/Materials Hauler-Mutant | -8/Garrison Mutant | -7/Factory Hauler-Mutant | -7/Lower Caves Hauler-Mutant | -7/Lower Caves Hauler-Mutant | -7/Zion Hauler-Mutant | -6/Proximity Caves Mutant | -6/Factory Hauler-Mutant | -6/Lower Caves Hauler-Tank | -6/Lower Caves Hauler-Tank | -6/Data Miner Hauler-Mutant | -5/Proximity Caves Mutant | -5/Factory Hauler-Mutant | -5/Upper Caves Hauler-Tank | -5/Upper Caves Hauler-Mutant | -5/Warlord Hauler-Mutant | -4/Proximity Caves Mutant | -4/Factory Hauler-Mutant | -4/Upper Caves Hauler-Skirmisher | -4/Upper Caves Hauler-Mutant | -4/Zhirov Hauler-Mutant | -3/Proximity Caves Hauler-Mutant | -3/Research Mutant | -3/Quarantine Resources | -11 -10 -10 -9 -9 -9 -8 -8 -8 -8 -8 -7 -7 -7 -7 -6 -6 -6 -6 -6 -5 -5 -5 -5 -5 -4 -4 -4 -4 -4 -3 -3 -3 ----------- Run | Scr Mat Min Mat Min Exi Min Mat Gar Mat Gar Fac Low Low Zio Pro Fac Low Low Dat Pro Fac Upp Upp War Pro Fac Upp Upp Zhi Pro Res Qua Matter Collected 34743 | 270 523 279 356 131 . 161 449 624 7 341 5484 348 150 . 154 7026 485 198 . 539 6930 1043 208 . 377 5830 505 746 247 521 811 . Remotely 11229 | . . . . . . . . . . . 3399 . . . . 2520 . . . . 2700 511 . . 112 1987 . . . . . . Salvage Created 42063 | 135 406 268 1889 347 . 673 1593 1586 98 360 6656 197 212 . 136 7358 832 445 . 409 6853 607 173 . 678 6761 430 953 398 523 1087 . Parts 1768 | 7 29 13 121 20 . 21 75 42 5 15 365 7 11 . 5 365 17 15 . 10 269 24 3 . 17 234 11 13 4 23 27 . Haulers Intercepted 13 | . 2 . 4 . . . 2 . . . 1 . . . . 2 . . . . 1 . . . . 1 . . . . . . Recyclers Shooed 29 | . . . . 1 . . 2 . . . 5 . . . . 11 . . . . 2 . . . . 5 . . . . 3 . Parts Field Recycled . | . . . . . . . . . . . . . . . . . . . . . . . . . . . . . . . . . Retrieved Matter . | . . . . . . . . . . . . . . . . . . . . . . . . . . . . . . . . . Parts Self-Destructed 114 | . . . . . . . . . . . . 3 14 . 5 . 5 10 . 9 . 31 2 . 10 . 8 6 1 10 . . Prevented 15 | . . . . . . . . . . . . 1 . . . . 3 . . . . . . . 1 . . . . 10 . . Kills | -11 -10 -10 -9 -9 -9 -8 -8 -8 -8 -8 -7 -7 -7 -7 -6 -6 -6 -6 -6 -5 -5 -5 -5 -5 -4 -4 -4 -4 -4 -3 -3 -3 ------- Run | Scr Mat Min Mat Min Exi Min Mat Gar Mat Gar Fac Low Low Zio Pro Fac Low Low Dat Pro Fac Upp Upp War Pro Fac Upp Upp Zhi Pro Res Qua Combat Hostiles Destroyed 940 | . 12 17 36 14 . 11 23 11 2 13 154 5 4 . 4 164 17 8 . 19 176 23 4 . 11 149 8 24 . 10 21 . Melee 4 | . . . . . . . . . . . . . . . . . . . . . 2 . . . . 2 . . . . . . Guns 58 | . 6 1 2 4 . 11 12 6 2 5 9 . . . . . . . . . . . . . . . . . . . . . Cannons 326 | . 2 2 34 6 . . 8 2 . 2 28 1 1 . . 25 4 5 . 7 85 13 2 . 8 64 . 7 . 3 17 . AOE 534 | . 4 14 . 4 . . . 3 . 6 113 4 2 . 4 136 13 3 . 12 89 10 2 . 3 80 8 17 . 5 2 . Classes Destroyed 24 | 2 6 2 4 1 . . 1 1 . . 1 2 . . 1 1 . . . . . . . . 1 1 . . . . . . Worker 66 | . 2 . 2 . . . 2 . . . 17 . . . . 19 . . . . 8 . . . . 15 . . . . 1 . Builder 108 | . 1 . 1 . . 1 1 . . . 55 . . . . 24 . . . . 9 . . . . 14 . . . . 2 . Tunneler 6 | 2 . . 1 . . . . . . . 1 . . . . 1 . . . . . . . . . 1 . . . . . . Hauler 13 | . 2 . 4 . . . 2 . . . 1 . . . . 2 . . . . 1 . . . . 1 . . . . . . Recycler 62 | 1 . 1 2 1 . 1 2 . . . 11 . . . . 18 . . . . 10 . . . . 13 . . . . 2 . Minesweeper 3 | . . . . . . . . . . . . . . . 1 . . . . 1 . . . . 1 . . . . . . . Mechanic 30 | . . . 1 . . . . . . . 11 . . . . 7 . . . . 8 . . . . 3 . . . . . . Operator 8 | . . . 1 . . . 1 . . . 4 . . . . . . . . . 1 . . . . . . . . . 1 . Watcher 20 | . 3 . 3 . . . 1 . . . 1 . . . . 5 . . . . 5 . . . . 2 . . . . . . Swarmer 133 | . 6 . 12 12 . . 3 . . 3 . 4 2 . 4 24 6 . . 6 13 11 . . . 16 8 2 . . 1 . Saboteur 24 | . . . . . . . . . . . . . . . . 4 . . . . 9 . . . . 11 . . . . . . Grunt 407 | . 6 . 13 1 . 10 11 6 2 6 90 . . . . 55 7 4 . 10 85 8 3 . 8 54 . 10 . 7 11 . Brawler 56 | . . . 1 . . 2 1 . . . 18 . . . . 6 1 . . . 14 . . . 1 10 . 2 . . . . Duelist 57 | . . . . 1 . . . 1 . 1 12 . . . . 5 1 2 . . 19 2 1 . . 8 . 3 . 1 . . Protector 35 | . . . . . . . . . . . 10 . . . . 14 . . . . 7 . . . . 4 . . . . . . Sentry 40 | . . . 10 . . . 7 3 . . 3 . 1 . . 2 1 1 . 2 3 1 . . 1 2 . 1 . . 2 . Demolisher 2 | . . 2 . . . . . . . . . . . . . . . . . . . . . . . . . . . . . . Hunter 83 | . . . . . . . 1 . . 1 9 . . . . 36 . 1 . . 8 2 . . . 21 . . . 2 2 . Programmer 81 | . . . . . . . . 1 . 2 13 . 1 . . 18 . . . 1 18 . . . . 22 . . . . 5 . Heavy 1 | . . . . . . . . . . . . . . . . . . . . . . . . . . 1 . . . . . . Behemoth 1 | . . . . . . . . . . . . . . . . . . . . . . . . . 1 . . . . . . . Enhanced Grunt 1 | . . . . . . . . . . . . . . . . . . . . 1 . . . . . . . . . . . . Decomposer 2 | . . . . . . . . . . . . 2 . . . . . . . . . . . . . . . . . . . . Packrat 3 | . . . . . . . . . . . . . . . . . . . . . . . . . . . 2 . . 1 . . Samaritan 6 | . . . . . . . . . . . . 1 . . . . 2 1 . . . . . . . . . 2 . . . . Assembled 15 | . . 15 . . . . . . . . . . . . . . . . . . . . . . . . . . . . . . Thug 4 | . . 1 . . . . . 1 . . . . . . . . . . . . . . . . . . . 2 . . . . Savage 5 | . . . . . . . . . . . . . . . . . 1 . . . . . . . . . . 4 . . . . Butcher 2 | . . . . . . . . . . . . . 1 . . . . . . . . . . . . . . 1 . . . . Guerrilla 1 | . . . . . . . . 1 . . . . . . . . . . . . . . . . . . . . . . . . Mutant 2 | . . . . . . . . . . . . 1 . . . . . . . . . . . . . . . 1 . . . . Best Kill Streak 42 | 2 7 17 6 4 . 3 6 2 2 8 29 4 2 . 4 24 7 4 . 12 42 7 4 . 5 29 4 11 . 4 12 . Combat Bots Only 40 | . 4 17 6 4 . 3 5 2 2 8 26 4 2 . 4 23 7 4 . 12 40 7 4 . 5 28 4 11 . 4 8 . Max Kills in Single Turn 7 | 1 4 3 1 3 . 1 2 2 1 2 5 2 2 . 4 5 2 2 . 4 7 3 1 . 2 6 4 4 . 2 3 . Gunslinging . | . . . . . . . . . . . . . . . . . . . . . . . . . . . . . . . . . Exploded 7 | . 2 3 . 3 . . . 2 . 2 5 2 2 . 4 5 2 2 . 4 7 3 1 . 2 5 4 4 . 2 1 . Melee 1 | . . . . . . . . . . . . . . . . . . . . . 1 . . . . 1 . . . . . . Uniques/NPCs Destroyed . | . . . . . . . . . . . . . . . . . . . . . . . . . . . . . . . . . Combat | -11 -10 -10 -9 -9 -9 -8 -8 -8 -8 -8 -7 -7 -7 -7 -6 -6 -6 -6 -6 -5 -5 -5 -5 -5 -4 -4 -4 -4 -4 -3 -3 -3 -------- Run | Scr Mat Min Mat Min Exi Min Mat Gar Mat Gar Fac Low Low Zio Pro Fac Low Low Dat Pro Fac Upp Upp War Pro Fac Upp Upp Zhi Pro Res Qua Damage Taken 40680 | . 594 631 1114 457 . 742 1683 751 41 1007 4449 85 42 . 15 3806 178 432 . 276 5294 430 99 . 278 10321 95 896 . 1193 5542 229 Core 3999 | . 104 141 174 26 . 18 195 105 . 172 187 15 . . . 364 . 51 . 29 582 14 . . 13 501 . 53 . 32 1086 137 Absorbed by Shields 3335 | . . . . . . . . 92 . . . . 16 . . 432 27 . . . 971 156 35 . 42 1230 . 78 . . 256 . Reduced by Siege Mode 1696 | . . . . . . . . . . . 110 . . . . 119 . 34 . 27 255 43 8 . 24 675 . 108 . 120 173 . Redirected to Shielding 191 | . 7 32 . . . . . . . . . . . . . 12 . . . . 82 . . . . 58 . . . . . . Regen/Repaired (Parts) 2526 | . . . . . . . . . . . 194 . . . . 1590 . . . . 500 39 . . 30 173 . . . . . . Core Remaining (%) 45 | 100 . 2 . . . 45 . . . 14 . . . . 71 . . . . 47 . . . . 39 . . . . 49 . . Volleys Fired 2637 | 10 54 19 108 28 . 37 86 100 9 37 510 19 5 . 19 385 46 15 . 70 348 41 11 . 53 429 21 50 27 28 70 2 Largest 3 | 2 2 2 2 2 . 2 2 2 1 2 2 2 2 . 2 3 3 3 . 3 3 1 1 . 2 3 1 1 1 1 3 1 Hottest 249 | 40 80 90 120 112 . 112 116 155 94 157 174 184 184 . 124 207 228 228 . 173 196 90 90 . 150 239 98 90 98 98 249 65 Shots Fired 3520 | 20 92 28 214 40 1 72 170 125 8 47 636 25 10 . 27 451 58 32 . 88 434 43 13 . 55 565 24 47 22 27 144 2 Gun 534 | 20 72 18 9 15 1 72 108 91 8 18 63 16 4 . 18 . . . . . . . . . . . . . . . . 1 Cannon 2417 | . 13 2 205 24 . . 60 19 . 12 423 7 5 . 8 319 43 30 . 73 369 34 11 . 51 477 20 29 22 21 139 1 Launcher 533 | . 7 8 . 1 . . 1 5 . 11 140 2 1 . 1 127 15 2 . 15 65 9 2 . 4 86 4 16 . 6 5 . Special 36 | . . . . . . . 1 10 . 6 10 . . . . 5 . . . . . . . . . 2 . 2 . . . . Kinetic 908 | 20 71 . 3 . . . . . . . 53 . . . . 115 8 10 . 15 257 24 8 . 22 184 5 20 . 12 80 1 Thermal 1739 | . . 2 204 15 1 72 113 96 8 18 429 23 9 . 26 136 35 20 . 58 111 10 3 . 29 221 15 4 22 2 57 . Explosive 533 | . 7 8 . 1 . . 1 5 . 11 140 2 1 . 1 127 15 2 . 15 65 9 2 . 4 86 4 16 . 6 5 . Electromagnetic 304 | . 14 18 7 24 . . 55 14 . 12 4 . . . . 68 . . . . 1 . . . . 72 . 5 . 7 2 1 Robot Hit Streak 74 | 3 10 6 14 10 . 16 20 28 6 10 26 9 4 . 3 74 11 13 . 25 35 12 8 . 13 39 7 16 19 6 22 . Robot Miss Streak 7 | 4 4 3 5 5 . 3 6 2 1 1 7 2 2 . 2 4 2 1 . 1 4 4 3 . 3 6 2 1 1 1 3 1 Penetration Max 1 | . . . . . . . . . . . 1 . . . . . . . . . . . . . . 1 . . . . 1 . Secondary Targets 6 | . 1 . . 1 . 4 . . . . . . . . . . . . . . . . . . . . . . . . . . Max Gunslinging Chain 1 | . 1 . . 1 . 1 . . . . . . . . . . . . . . . . . . . . . . . . . . Shots Hit Robots 2357 | 12 65 18 130 23 . 48 116 106 6 25 381 18 4 . 10 355 42 26 . 34 339 29 10 . 40 336 10 36 21 19 98 . Core Hits 2367 | 5 33 42 62 15 . 23 47 50 2 30 424 10 5 . 6 440 39 16 . 51 437 34 9 . 41 403 10 56 7 18 52 . Critical Kills 14 | . . . . . . . 1 2 . . 3 . 1 . . 3 . . . . . . . . . 1 2 . . . 1 . Critical Parts Destroyed 11 | . . . . . . . . 1 . . 7 . . . . . . . . . 3 . . . . . . . . . . . Critical Strikes 125 | . . . . 2 . 6 8 17 . . 13 . 1 . . 9 . . . 1 22 3 . . 3 22 2 4 . 2 10 . Burn 26 | . . . . 2 . 6 5 13 . . . . . . . . . . . . . . . . . . . . . . . . Meltdown 12 | . . . . . . . 1 . . . 3 . 1 . . 3 . . . . . . . . . 1 2 . . . 1 . Blast 68 | . . . . . . . . . . . 3 . . . . 3 . . . 1 19 3 . . 3 21 . 4 . 2 9 . Corrupt 3 | . . . . . . . 2 . . . . . . . . 1 . . . . . . . . . . . . . . . . Smash 14 | . . . . . . . . 4 . . 7 . . . . . . . . . 3 . . . . . . . . . . . Impale 2 | . . . . . . . . . . . . . . . . 2 . . . . . . . . . . . . . . . . Melee Attacks 401 | . . . 6 1 . . 6 38 . 6 127 . . . . 129 . . . . 88 . . . . . . . . . . . Impact 256 | . . . 6 1 . . 6 38 . 6 127 . . . . 23 . . . . 49 . . . . . . . . . . . Slashing 39 | . . . . . . . . . . . . . . . . . . . . . 39 . . . . . . . . . . . Piercing 106 | . . . . . . . . . . . . . . . . 106 . . . . . . . . . . . . . . . . Sneak Attacks 48 | . . . 1 1 . . . . . . 16 . . . . 20 . . . . 10 . . . . . . . . . . . Combat Hostiles . | . . . . . . . . . . . . . . . . . . . . . . . . . . . . . . . . . Follow-up Attacks . | . . . . . . . . . . . . . . . . . . . . . . . . . . . . . . . . . Damage Inflicted 172282 | 142 1340 1142 2518 734 . 848 2556 2845 175 1605 29625 967 445 . 478 32264 2806 1073 . 3344 33226 2622 850 . 2631 33000 1029 6027 788 1851 5351 . Guns 7537 | 142 645 172 70 125 . 845 1635 1613 175 289 1250 398 93 . 85 . . . . . . . . . . . . . . . . . Cannons 56500 | . 187 34 2351 338 . . 900 316 . 221 5962 190 147 . 134 6491 1046 714 . 755 13695 1132 475 . 1737 12484 264 1392 788 886 3861 . Explosions 102080 | . 508 936 . 174 . . . 487 . 1095 20484 379 205 . 259 23704 1760 359 . 2589 18079 1490 375 . 894 20516 765 4635 . 965 1422 . Melee 5999 | . . . 56 97 . . . 429 . . 1896 . . . . 2069 . . . . 1452 . . . . . . . . . . . Ramming 166 | . . . 41 . . 3 21 . . . 33 . . . . . . . . . . . . . . . . . . . 68 . Kinetic 31569 | 142 627 . 42 . . . . . . . 1076 . . . . 2281 100 238 . 374 11982 1132 436 . 958 7682 . 1250 . 579 2670 . Thermal 27056 | . . 133 2289 159 . 845 1651 1742 175 289 6035 588 240 . 219 2465 946 476 . 381 2340 . 39 . 779 3064 264 . 788 32 1117 . Explosive 100877 | . 508 837 . 140 . . . 487 . 1095 20484 379 205 . 259 23593 1760 359 . 2589 17452 1490 375 . 894 20184 765 4635 . 965 1422 . Electromagnetic 6615 | . 205 172 90 338 . . 884 187 . 221 101 . . . . 1856 . . . . . . . . . 2070 . 142 . 275 74 . Impact 3514 | . . . 56 97 . . . 429 . . 1896 . . . . 159 . . . . 877 . . . . . . . . . . . Slashing 575 | . . . . . . . . . . . . . . . . . . . . . 575 . . . . . . . . . . . Piercing 1910 | . . . . . . . . . . . . . . . . 1910 . . . . . . . . . . . . . . . . Highest Corruption 62 | . 1 10 4 4 4 4 1 26 26 26 15 15 16 16 . 3 . . . 1 13 3 3 3 . 61 62 62 62 62 15 15 Average Corruption 12 | . 1 1 3 4 4 4 1 7 26 26 7 15 15 16 . 1 . . . 1 5 3 3 3 . 18 61 62 61 62 5 15 Corruption Purged 26 | . . . . . . . . . . . 3 . . . . 3 . . . . 16 . . . . 4 . . . . . . Corruption Blocked . | . . . . . . . . . . . . . . . . . . . . . . . . . . . . . . . . . Effects 1319 | . 12 5 13 27 26 32 9 70 8 44 210 44 47 2 . 42 . . . 5 211 21 17 2 . 163 77 94 29 89 16 4 Message Errors 297 | . 3 2 3 6 6 11 2 16 2 7 37 10 10 . . 8 . . . 2 60 5 3 . . 39 12 18 7 26 2 . Matter Fused 310 | . . 1 2 8 8 4 3 20 1 7 55 8 9 . . 7 . . . 1 39 5 7 . . 44 27 22 7 19 5 1 Heat Flow Errors 150 | . 2 . 4 3 4 7 . 7 2 6 21 5 12 . . 5 . . . 1 22 . . . . 18 5 11 3 11 1 . Energy Discharges 166 | . 2 1 2 6 3 3 2 9 2 8 31 9 6 . . 8 . . . . 25 3 1 1 . 14 10 9 2 8 1 . Parts Rejected 12 | . . . . . . . . 2 . 2 2 . . . . . . . . . 3 . . . . 2 . . . . 1 . Data Loss (minor) 180 | . 3 . 2 2 1 3 1 7 . 7 30 6 5 . . 7 . . . 1 34 3 4 . . 22 11 15 3 10 3 . Data Loss (major) 64 | . 1 1 . . 2 1 . 2 . 1 5 2 . 2 . 2 . . . . 16 2 . 1 . 9 3 7 1 6 . . Misfires 61 | . . . . 1 1 . 1 4 . 4 16 1 3 . . 3 . . . . 5 2 2 . . 5 5 4 . 4 . . Alerts 30 | . 1 . . 1 1 1 . 1 . . 5 1 1 . . 2 . . . . 7 1 . . . 3 2 1 1 . . 1 Misdirections 5 | . . . . . . . . . . . . . 1 . . . . . . . . . . . . 1 . . . . 1 2 Weapon Failures 44 | . . . . . . 2 . 2 1 2 8 2 . . . . . . . . . . . . . 6 2 7 5 5 2 . Overload Shots 5 | . . . . . . . . . . . . 3 2 . . . . . . . . . . . . . . . . . . . Overflow Damage 7386 | . 37 1 14 57 . . . 122 . 23 1937 49 26 . 39 1505 93 65 . 18 1499 99 12 . 242 965 96 160 96 60 171 . Projectiles 1993 | . . . 14 . . . . . . . 207 . . . 39 169 10 47 . 10 356 50 12 . 235 419 96 52 96 58 123 . Explosions 2695 | . 37 1 . . . . . . . 23 457 49 26 . . 766 83 18 . 8 467 49 . . 7 546 . 108 . 2 48 . Melee 2698 | . . . . 57 . . . 122 . . 1273 . . . . 570 . . . . 676 . . . . . . . . . . . Knockbacks 181 | . 1 . . 1 . . . 1 . . 14 . . . . 17 1 . . 2 60 7 4 . 2 44 . 4 . 5 18 . Impact 13 | . . . . 1 . . . 1 . . 10 . . . . . . . . . 1 . . . . . . . . . . . Kinetic 155 | . 1 . . . . . . . . . 4 . . . . 15 1 . . 2 56 7 4 . 2 38 . 4 . 5 16 . Secondary 13 | . . . . . . . . . . . . . . . . 2 . . . . 3 . . . . 6 . . . . 2 . Self-Inflicted Damage 1642 | . . 97 5 36 . . . 73 . 133 282 . . . . 39 . . . 19 462 . . . . 141 . 133 . 95 127 . Shots 44 | . . 3 . 2 . . . 2 . 5 10 . . . . 1 . . . 1 8 . . . . 4 . 3 . 2 3 . Rammed 19 | . . . 3 . . 2 1 . . . 1 . . . . . . . . . . . . . . . . . . . 12 . Targets Rammed 22 | . . . 4 . . 2 2 . . . 2 . . . . . . . . . . . . . . . . . . . 12 . Kicked 1 | . . . . . . . 1 . . . . . . . . . . . . . . . . . . . . . . . . . Crushed 2 | . . . 1 . . . . . . . 1 . . . . . . . . . . . . . . . . . . . . . Highest Temperature 534 | . 159 99 402 169 234 251 48 219 244 390 372 250 221 . . 318 279 462 . 110 534 12 3 . 12 381 188 316 203 259 112 . Average Temperature 68 | . 27 44 60 69 112 51 13 65 79 92 76 57 74 . . 81 67 125 . 32 84 7 3 . 7 66 53 44 79 74 30 . Received Heat Transfer 7666 | . 243 120 285 24 . 423 621 306 18 297 1272 . . . . 426 51 132 . 99 1183 90 42 . 35 1172 . 186 . 244 397 . Effects 13 | . . . 1 . . . . . . 1 1 . . . . . 3 . . . 4 . . . . . . 3 . . . . Shutdowns 3 | . . . 1 . . . . . . . . . . . . . . . . . 2 . . . . . . . . . . . Energy Bleed 2 | . . . . . . . . . . 1 1 . . . . . . . . . . . . . . . . . . . . . Interference 7 | . . . . . . . . . . . . . . . . . 3 . . . 1 . . . . . . 3 . . . . Matter Decay 1 | . . . . . . . . . . . . . . . . . . . . . 1 . . . . . . . . . . . Siege Activations 79 | . . . . . . . . . . . 8 . . . . 8 1 2 . 6 14 3 1 . 4 19 1 4 . 3 5 . Total Turns 10431 | . . . . . . . . . . . 3742 . . . . 2228 20 29 . 97 2557 70 16 . 235 1151 29 83 . 49 125 . Longest Duration 2344 | . . . . . . . . . . . 2344 . . . . 567 20 18 . 49 1183 44 16 . 86 706 29 33 . 24 46 . Robots Corrupted 9 | . 1 . . . . . 1 . . . . . . . . 1 . . . . . . . . . 2 . 1 . 2 1 . Combat Hostiles 7 | . . . . . . . 1 . . . . . . . . 1 . . . . . . . . . 2 . . . 2 1 . Parts Fried 65 | . 1 . . 2 . . 2 7 . . 16 . . . . 23 . . . . 7 . . . . 3 . 1 . 2 1 . Impact Corruptions 55 | . . . . 2 . . . 2 . . 39 . . . . 2 . . . . 10 . . . . . . . . . . . Robots Melted 13 | . . . . . . . 2 . . . 3 . 1 . . 3 . . . . . . . . . 1 2 . . . 1 . Combat Hostiles 10 | . . . . . . . 2 . . . 2 . 1 . . 2 . . . . . . . . . 1 1 . . . 1 . Parts Melted 59 | . . . 10 . . 5 11 11 . 1 5 . 1 . 1 5 . 1 . 1 . . . . . 6 1 . . . . . Heat Transferred 37104 | . . 174 4662 457 . 2257 3293 3996 222 333 7880 729 248 . 296 3750 1411 659 . 511 1300 . . . . 1852 400 . 974 50 1650 . Parts Sabotaged 6 | . . . . . . . . . . . . . . . . . . . . . 1 . . . . 5 . . . . . . Parts Stolen . | . . . . . . . . . . . . . . . . . . . . . . . . . . . . . . . . . Parts Stripped . | . . . . . . . . . . . . . . . . . . . . . . . . . . . . . . . . . Power Chain Reactions 6 | . . 1 . 1 . . . . . . . . . . . 2 . . . . . . . . . 2 . . . . . . Missiles Intercepted . | . . . . . . . . . . . . . . . . . . . . . . . . . . . . . . . . . Alert | -11 -10 -10 -9 -9 -9 -8 -8 -8 -8 -8 -7 -7 -7 -7 -6 -6 -6 -6 -6 -5 -5 -5 -5 -5 -4 -4 -4 -4 -4 -3 -3 -3 ------- Run | Scr Mat Min Mat Min Exi Min Mat Gar Mat Gar Fac Low Low Zio Pro Fac Low Low Dat Pro Fac Upp Upp War Pro Fac Upp Upp Zhi Pro Res Qua Peak Influence 4484 | 15 173 131 691 443 . 135 504 1303 734 962 4484 . . . . 3662 . . . . 4189 . . . . 3962 . . . . 591 306 Initial 635 | . 9 . 50 269 . . 8 273 635 477 502 . . . . 3 . . . . 7 . . . . 32 . . . . 13 256 Average 1157 | 8 48 16 268 353 . 37 156 792 656 773 1695 . . . . 1058 . . . . 1447 . . . . 1938 . . . . 228 270 Maximum Alert Level 5 | . . . 2 2 . . 2 4 3 3 5 . . . . 5 . . . . 5 . . . . 5 . . . . 2 1 Low Security (%) 22 | 100 100 100 52 . . 100 74 . . . 1 . . . . 17 . . . . 15 . . . . 5 . . . . 59 . Level 1 16 | . . . 18 56 . . 16 12 . . 14 . . . . 23 . . . . 17 . . . . 10 . . . . 18 100 Level 2 18 | . . . 28 43 . . 8 25 92 33 28 . . . . 18 . . . . 14 . . . . 7 . . . . 22 . Level 3 10 | . . . . . . . . 49 7 66 4 . . . . 8 . . . . 10 . . . . 20 . . . . . . Level 4 6 | . . . . . . . . 12 . . 11 . . . . 10 . . . . 6 . . . . 4 . . . . . . Level 5 8 | . . . . . . . . . . . 24 . . . . . . . . . 12 . . . . 9 . . . . . . High Security 16 | . . . . . . . . . . . 14 . . . . 20 . . . . 22 . . . . 41 . . . . . . Max Security . | . . . . . . . . . . . . . . . . . . . . . . . . . . . . . . . . . Sterilizations 4 | . . . . . . . . . . . 1 . . . . 1 . . . . 1 . . . . 1 . . . . . . Squads Dispatched 219 | . 2 . 4 . . . 5 . 1 . 60 . . . . 45 . . . 1 48 . . . . 41 . 1 . . 11 . Investigation 29 | . . . 2 . . . 2 . . . 6 . . . . 6 . . . 1 6 . . . . 4 . . . . 2 . Extermination 26 | . . . . . . . . . . . 9 . . . . 5 . . . . 6 . . . . 5 . . . . 1 . Reinforcement 53 | . 2 . 2 . . . 1 . 1 . 22 . . . . 8 . . . . 6 . . . . 6 . . . . 5 . Assault 106 | . . . . . . . . . . . 23 . . . . 26 . . . . 30 . . . . 26 . 1 . . . . Garrison 5 | . . . . . . . 2 . . . . . . . . . . . . . . . . . . . . . . . 3 . Intercept . | . . . . . . . . . . . . . . . . . . . . . . . . . . . . . . . . . Searches Triggered 8 | . . . . . . . . . . . 1 . . . . 3 . . . . 4 . . . . . . . . . . . Data Miner Redirects 16 | . . . . . . . . . . . . . . . . . . . . . 9 . . . . 5 . . . . 2 . Construction Impeded 34 | . . . . . . . 1 . . . 17 . . . . 6 . . . . 5 . . . . 3 . . . . 2 . Haulers Reinforced 2 | . . . . . . . . . . . . . . . . 1 . . . . . . . . . . . . . . 1 . Active Scanning Responses 2 | . . . . . . . . . . . . . . . . . . . . . . . . . . . . . . . 2 . Cargo Convoy Interrupts . | . . . . . . . . . . . . . . . . . . . . . . . . . . . . . . . . . Stealth | -11 -10 -10 -9 -9 -9 -8 -8 -8 -8 -8 -7 -7 -7 -7 -6 -6 -6 -6 -6 -5 -5 -5 -5 -5 -4 -4 -4 -4 -4 -3 -3 -3 --------- Run | Scr Mat Min Mat Min Exi Min Mat Gar Mat Gar Fac Low Low Zio Pro Fac Low Low Dat Pro Fac Upp Upp War Pro Fac Upp Upp Zhi Pro Res Qua Distress Signals 32 | . 1 . 5 . . . 3 1 . . 7 . . . . 7 . . . . 4 . . . . 2 . . . . 1 1 Communications Jammed 5 | . . . . . . . . . . . 4 . . . . 1 . . . . . . . . . . . . . . . . Distress Signals 5 | . . . . . . . . . . . 4 . . . . 1 . . . . . . . . . . . . . . . . Times Spotted 1299 | . 21 19 52 17 . 12 37 22 6 25 220 4 8 . 4 231 16 8 . 10 255 24 4 . 10 208 8 20 . 10 44 4 Peak Tracking Total 21 | . 5 11 5 4 . 3 5 4 3 7 15 4 4 . 4 18 6 4 . 13 19 7 4 . 4 21 4 7 . 4 16 4 Tactical Retreats 62 | . . 1 2 . . . 4 . . 1 9 . . . . 13 . . . 1 20 . . . 1 9 . . . . . 1 Traps | -11 -10 -10 -9 -9 -9 -8 -8 -8 -8 -8 -7 -7 -7 -7 -6 -6 -6 -6 -6 -5 -5 -5 -5 -5 -4 -4 -4 -4 -4 -3 -3 -3 ------- Run | Scr Mat Min Mat Min Exi Min Mat Gar Mat Gar Fac Low Low Zio Pro Fac Low Low Dat Pro Fac Upp Upp War Pro Fac Upp Upp Zhi Pro Res Qua Traps Triggered 34 | . 5 . 3 . . . . 8 . 3 6 . . . . . . . . . 6 . . . . 3 . . . . . . Indirectly . | . . . . . . . . . . . . . . . . . . . . . . . . . . . . . . . . . Trap Hack Attempts . | . . . . . . . . . . . . . . . . . . . . . . . . . . . . . . . . . Triggered . | . . . . . . . . . . . . . . . . . . . . . . . . . . . . . . . . . Disarmed . | . . . . . . . . . . . . . . . . . . . . . . . . . . . . . . . . . Reprogrammed . | . . . . . . . . . . . . . . . . . . . . . . . . . . . . . . . . . Reused 2 | . . . . . . . . . . . . . . . . . . . . . . . . . 2 . . . . . . . Traps Extracted . | . . . . . . . . . . . . . . . . . . . . . . . . . . . . . . . . . Installed 17 | . . . . . . . . . . . . . . . . . . . . 9 . . . . 8 . . . . . . . Triggered 5 | . . . . . . . . . . . . . 1 . . . 1 . . . . . . . 3 . . . . . . . Machines | -11 -10 -10 -9 -9 -9 -8 -8 -8 -8 -8 -7 -7 -7 -7 -6 -6 -6 -6 -6 -5 -5 -5 -5 -5 -4 -4 -4 -4 -4 -3 -3 -3 ---------- Run | Scr Mat Min Mat Min Exi Min Mat Gar Mat Gar Fac Low Low Zio Pro Fac Low Low Dat Pro Fac Upp Upp War Pro Fac Upp Upp Zhi Pro Res Qua Machines Disabled 87 | . . 1 2 1 . 1 . 6 . 3 5 1 . . . 11 1 . . 3 25 1 1 . 1 17 . 2 1 . 3 1 Max in Single Turn 10 | . . 1 1 1 . 1 . 1 . 1 1 1 . . . 5 1 . . 1 10 1 1 . 1 4 . 2 1 . 1 1 Garrison Access 11 | . . . . . . . . . . . 2 . . . . 3 . . . . 4 . . . . 2 . . . . . . Garrison Relay 7 | . . . . . . . . 5 . 2 . . . . . . . . . . . . . . . . . . . . . . Machines Sabotaged . | . . . . . . . . . . . . . . . . . . . . . . . . . . . . . . . . . Garrisons Compromised . | . . . . . . . . . . . . . . . . . . . . . . . . . . . . . . . . . Overloaded Fab Kills . | . . . . . . . . . . . . . . . . . . . . . . . . . . . . . . . . . Hacking | -11 -10 -10 -9 -9 -9 -8 -8 -8 -8 -8 -7 -7 -7 -7 -6 -6 -6 -6 -6 -5 -5 -5 -5 -5 -4 -4 -4 -4 -4 -3 -3 -3 --------- Run | Scr Mat Min Mat Min Exi Min Mat Gar Mat Gar Fac Low Low Zio Pro Fac Low Low Dat Pro Fac Upp Upp War Pro Fac Upp Upp Zhi Pro Res Qua Machines Accessed 151 | . 8 . 11 . 4 . 8 3 1 1 20 1 . . . 32 1 1 4 1 29 1 . . . 17 1 . 4 . 2 1 Terminals 72 | . 6 . 9 . . . 6 3 . 1 9 1 . . . 13 . . . 1 12 . . . . 8 . . . . 2 1 Fabricators 14 | . . . . . . . . . . . 3 . . . . 5 . . . . 3 . . . . 3 . . . . . . Repair Stations 10 | . . . . . . . 1 . . . 2 . . . . 4 . . . . 2 . . . . 1 . . . . . . Recycling Units 20 | . 2 . 2 . . . . . . . 5 . . . . 4 . . . . 5 . . . . 2 . . . . . . Scanalyzers 7 | . . . . . . . . . . . . . . . . 3 . . . . 3 . . . . 1 . . . . . . Garrison Access 12 | . . . . . . . 1 . 1 . 1 . . . . 3 . . . . 4 . . . . 2 . . . . . . Total Hacks 555 | . 26 . 37 . 4 . 18 8 1 2 48 1 . . . 108 1 1 29 4 166 1 . . . 78 1 . 17 . 3 1 Successful 321 | . 13 . 18 . 4 . 8 2 1 . 24 1 . . . 65 1 1 29 4 92 1 . . . 38 1 . 17 . 1 . Failed 232 | . 12 . 18 . . . 10 6 . 2 24 . . . . 43 . . . . 74 . . . . 40 . . . . 2 1 Catastrophic 38 | . 1 . 2 . . . 6 1 . . 7 . . . . 1 . . . . 11 . . . . 8 . . . . 1 . Database Lockouts 2 | . 1 . 1 . . . . . . . . . . . . . . . . . . . . . . . . . . . . . Manual 210 | . 15 . 14 . 2 . 10 1 . . 22 . . . . 32 . . . . 74 . . . . 39 . . . . 1 . Terminals 303 | . 18 . 32 . . . 15 8 . 2 22 1 . . . 55 . . . 4 91 . . . . 51 . . . . 3 1 Fabricators 47 | . . . . . . . . . . . 6 . . . . 17 . . . . 11 . . . . 13 . . . . . . Repair Stations 31 | . . . . . . . 2 . . . 5 . . . . 14 . . . . 8 . . . . 2 . . . . . . Recycling Units 79 | . 8 . 5 . . . . . . . 14 . . . . 13 . . . . 31 . . . . 8 . . . . . . Scanalyzers 29 | . . . . . . . . . . . . . . . . 6 . . . . 21 . . . . 2 . . . . . . Garrison Access 12 | . . . . . . . 1 . 1 . 1 . . . . 3 . . . . 4 . . . . 2 . . . . . . Terminal Hacks 149 | . 7 . 14 . 4 . 5 2 . . 7 1 . . . 24 1 1 29 4 21 1 . . . 9 1 . 17 . 1 . Record 25 | . . . . . 4 . . . . . . 1 . . . . . . 11 4 . . . . . . . . 5 . . . Part Schematic 18 | . . . . . . . . . . . . . . . . 2 . . 11 . 1 . . . . . . . 4 . . . Robot Schematic 4 | . . . . . . . . . . . . . . . . . . . 4 . . . . . . . . . . . . . Robot Analysis 17 | . 2 . 5 . . . 2 . . . . . . . . 4 . . . . . . . . . . . . 4 . . . Prototype ID Bank 21 | . 1 . 4 . . . 2 . . . 1 . . . . 2 . . 3 . 4 . . . . . . . 4 . . . Open Door 5 | . . . . . . . . 1 . . . . . . . . 1 1 . . . 1 . . . . 1 . . . . . Open DSF 1 | . . . . . . . . . . . 1 . . . . . . . . . . . . . . . . . . . . . Branch Access Points 3 | . . . . . . . . . . . . . . . . 1 . . . . . . . . . 1 . . . . 1 . Machine Index 1 | . . . . . . . . . . . . . . . . 1 . . . . . . . . . . . . . . . . Terminal Index 2 | . . . 1 . . . . . . . 1 . . . . . . . . . . . . . . . . . . . . . Fabricator Index 1 | . . . . . . . . . . . . . . . . 1 . . . . . . . . . . . . . . . . Repair Station Index 2 | . . . . . . . . . . . . . . . . 1 . . . . . . . . . 1 . . . . . . Recycling Unit Index 1 | . . . . . . . . . . . . . . . . . . . . . . . . . . 1 . . . . . . Garrison Index 1 | . . . . . . . . . . . . . . . . 1 . . . . . . . . . . . . . . . . Alert Level 1 | . . . 1 . . . . . . . . . . . . . . . . . . . . . . . . . . . . . Unreport Threat 12 | . . . 1 . . . . . . . 1 . . . . 4 . . . . 4 . . . . 2 . . . . . . Locate Traps 7 | . 1 . . . . . 1 . . . . . . . . . . . . . 4 . . . . 1 . . . . . . Maintenance Status 3 | . 1 . . . . . . . . . . . . . . 1 . . . . . . . . . 1 . . . . . . Security Status 2 | . . . . . . . . . . . . . . . . . . . . . 1 . . . . 1 . . . . . . Patrol Status 1 | . . . . . . . . . . . . . . . . . . . . . 1 . . . . . . . . . . . Transport Status 1 | . . . . . . . . . . . . . . . . 1 . . . . . . . . . . . . . . . . Investigation Status 1 | . . . . . . . . . . . 1 . . . . . . . . . . . . . . . . . . . . . Recall Investigation 3 | . 1 . . . . . . . . . 1 . . . . . . . . . 1 . . . . . . . . . . . Hauler Manifests 5 | . . . 1 . . . . . . . 1 . . . . 1 . . . . 1 . . . . 1 . . . . . . Registered Components 1 | . . . . . . . . . . . . . . . . . . . . . 1 . . . . . . . . . . . Registered Prototypes 1 | . . . . . . . . . . . . . . . . . . . . . 1 . . . . . . . . . . . Zone Layout 8 | . 1 . 1 . . . . . . . . . . . . 4 . . . . 2 . . . . . . . . . . . Security Stations 1 | . . . . . . . . 1 . . . . . . . . . . . . . . . . . . . . . . . . Fabricator Hacks 27 | . . . . . . . . . . . 3 . . . . 9 . . . . 9 . . . . 6 . . . . . . Network Status 8 | . . . . . . . . . . . 3 . . . . 1 . . . . 3 . . . . 1 . . . . . . Load Schematic 10 | . . . . . . . . . . . . . . . . 4 . . . . 3 . . . . 3 . . . . . . Build 9 | . . . . . . . . . . . . . . . . 4 . . . . 3 . . . . 2 . . . . . . Repair Station Hacks 22 | . . . . . . . . . . . 3 . . . . 11 . . . . 6 . . . . 2 . . . . . . Scan Component 12 | . . . . . . . . . . . 2 . . . . 6 . . . . 3 . . . . 1 . . . . . . Repair 10 | . . . . . . . . . . . 1 . . . . 5 . . . . 3 . . . . 1 . . . . . . Recycling Unit Hacks 17 | . 2 . 2 . . . . . . . 1 . . . . 2 . . . . 7 . . . . 3 . . . . . . Retrieve Matter 3 | . . . . . . . . . . . . . . . . . . . . . 3 . . . . . . . . . . . Retrieve Components 14 | . 2 . 2 . . . . . . . 1 . . . . 2 . . . . 4 . . . . 3 . . . . . . Scanalyzer 17 | . . . . . . . . . . . . . . . . 4 . . . . 11 . . . . 2 . . . . . . Insert Component 14 | . . . . . . . . . . . . . . . . 3 . . . . 9 . . . . 2 . . . . . . Analyze 3 | . . . . . . . . . . . . . . . . 1 . . . . 2 . . . . . . . . . . . Garrison Access Hacks 12 | . . . . . . . 1 . 1 . 1 . . . . 3 . . . . 4 . . . . 2 . . . . . . Unlock Access 3 | . . . . . . . 1 . 1 . 1 . . . . . . . . . . . . . . . . . . . . . Seal Access 9 | . . . . . . . . . . . . . . . . 3 . . . . 4 . . . . 2 . . . . . . Unauthorized Hacks 77 | . 4 . 2 . . . 2 . . . 9 . . . . 12 . . . . 34 . . . . 14 . . . . . . Terminals 43 | . 2 . 1 . . . 2 . . . 1 . . . . 7 . . . . 21 . . . . 9 . . . . . . Track 9 | . . . . . . . . . . . . . . . . 2 . . . . 6 . . . . 1 . . . . . . Assimilate 9 | . . . . . . . . . . . . . . . . 1 . . . . 6 . . . . 2 . . . . . . Botnet 22 | . 2 . 1 . . . 2 . . . 1 . . . . 3 . . . . 7 . . . . 6 . . . . . . Operators 3 | . . . . . . . . . . . . . . . . 1 . . . . 2 . . . . . . . . . . . Fabricators 2 | . . . . . . . . . . . 1 . . . . . . . . . 1 . . . . . . . . . . . Liberate 1 | . . . . . . . . . . . . . . . . . . . . . 1 . . . . . . . . . . . Fabnet 1 | . . . . . . . . . . . 1 . . . . . . . . . . . . . . . . . . . . . Repair Stations . | . . . . . . . . . . . . . . . . . . . . . . . . . . . . . . . . . Recycling Units 32 | . 2 . 1 . . . . . . . 7 . . . . 5 . . . . 12 . . . . 5 . . . . . . Reject 12 | . 1 . . . . . . . . . 3 . . . . 1 . . . . 5 . . . . 2 . . . . . . Recyclers 4 | . . . . . . . . . . . . . . . . 1 . . . . 2 . . . . 1 . . . . . . Mask 15 | . 1 . . . . . . . . . 4 . . . . 3 . . . . 5 . . . . 2 . . . . . . Tunnel 1 | . . . 1 . . . . . . . . . . . . . . . . . . . . . . . . . . . . . Scanalyzers . | . . . . . . . . . . . . . . . . . . . . . . . . . . . . . . . . . Garrison Access . | . . . . . . . . . . . . . . . . . . . . . . . . . . . . . . . . . Data Cores Recovered 1 | . . . . . . . 1 . . . . . . . . . . . . . . . . . . . . . . . . . Used 1 | . . . . . . . 1 . . . . . . . . . . . . . . . . . . . . . . . . . Hacking Detections 109 | . 7 . 11 . . . 7 3 . 1 17 1 . . . 26 . . . 1 20 . . . . 12 . . . . 2 1 Full Trace Events 27 | . 2 . . . . . 3 2 . . 5 . . . . 6 . . . 1 4 . . . . 4 . . . . . . Feedback Events 3 | . 1 . . . . . 1 . . . . . . . . 1 . . . . . . . . . . . . . . . . Corruption 2 | . 1 . . . . . 1 . . . . . . . . . . . . . . . . . . . . . . . . . Hackware Fried 1 | . . . . . . . . . . . . . . . . 1 . . . . . . . . . . . . . . . . Feedback Blocked . | . . . . . . . . . . . . . . . . . . . . . . . . . . . . . . . . . Robot Schematics Acquired 4 | . . . . . . . . . . . . . . . . . . . 4 . . . . . . . . . . . . . Robots Built . | . . . . . . . . . . . . . . . . . . . . . . . . . . . . . . . . . Authchips . | . . . . . . . . . . . . . . . . . . . . . . . . . . . . . . . . . Time . | . . . . . . . . . . . . . . . . . . . . . . . . . . . . . . . . . Total Robot Build Rating . | . . . . . . . . . . . . . . . . . . . . . . . . . . . . . . . . . Part Schematics Acquired 21 | . . . . . . . . . . . . . . . . 3 . . 11 . 3 . . . . . . . 4 . . . Parts Built 12 | . . . . . . . . . . . . . . . . 7 . . . . 3 . . . . 2 . . . . . . Authchips . | . . . . . . . . . . . . . . . . . . . . . . . . . . . . . . . . . Time 917 | . . . . . . . . . . . . . . . . 286 . . . . 490 . . . . 141 . . . . . . Total Part Build Rating 77 | . . . . . . . . . . . . . . . . 48 . . . . 17 . . . . 12 . . . . . . Parts Repaired 10 | . . . . . . . . . . . 1 . . . . 5 . . . . 3 . . . . 1 . . . . . . Time 428 | . . . . . . . . . . . 22 . . . . 262 . . . . 100 . . . . 44 . . . . . . Parts Recycled . | . . . . . . . . . . . . . . . . . . . . . . . . . . . . . . . . . Recycled Matter . | . . . . . . . . . . . . . . . . . . . . . . . . . . . . . . . . . Retrieved Matter 43 | . . . . . . . . . . . . . . . . . . . . . 43 . . . . . . . . . . . Retrieved Components 36 | . 3 . 10 . . . . . . . 1 . . . . 6 . . . . 14 . . . . 2 . . . . . . Parts Scanalyzed 3 | . . . . . . . . . . . . . . . . 1 . . . . 2 . . . . . . . . . . . Part Schematics Acquired 3 | . . . . . . . . . . . . . . . . 1 . . . . 2 . . . . . . . . . . . Parts Damaged . | . . . . . . . . . . . . . . . . . . . . . . . . . . . . . . . . . Bothacking | -11 -10 -10 -9 -9 -9 -8 -8 -8 -8 -8 -7 -7 -7 -7 -6 -6 -6 -6 -6 -5 -5 -5 -5 -5 -4 -4 -4 -4 -4 -3 -3 -3 ------------ Run | Scr Mat Min Mat Min Exi Min Mat Gar Mat Gar Fac Low Low Zio Pro Fac Low Low Dat Pro Fac Upp Upp War Pro Fac Upp Upp Zhi Pro Res Qua Used RIF Installer 3 | . . . . . . . . 2 . 1 . . . . . . . . . . . . . . . . . . . . . . Zone Cloak 1 | . . . . . . . . 1 . . . . . . . . . . . . . . . . . . . . . . . . Patrol Navigation 1 | . . . . . . . . . . 1 . . . . . . . . . . . . . . . . . . . . . . Robots Hacked 17 | . . . . . . . . . . 4 7 . . . . 2 . . . . . . . . . 2 . 2 . . . . Non-combat 7 | . . . . . . . . . . . 4 . . . . 2 . . . . . . . . . 1 . . . . . . Combat 10 | . . . . . . . . . . 4 3 . . . . . . . . . . . . . . 1 . 2 . . . . Robot Hacks Applied 19 | . . . . . . . . . . 4 9 . . . . 2 . . . . . . . . . 2 . 2 . . . . parse_system 4 | . . . . . . . . . . . 1 . . . . . . . . . . . . . . 1 . 2 . . . . find_chute 1 | . . . . . . . . . . . . . . . . . . . . . . . . . . 1 . . . . . . drop_inventory 1 | . . . . . . . . . . . 1 . . . . . . . . . . . . . . . . . . . . . purge_threat 3 | . . . . . . . . . . . 3 . . . . . . . . . . . . . . . . . . . . . map_route 1 | . . . . . . . . . . . . . . . . 1 . . . . . . . . . . . . . . . . link_fov 2 | . . . . . . . . . . . 1 . . . . 1 . . . . . . . . . . . . . . . . go_dormant 1 | . . . . . . . . . . 1 . . . . . . . . . . . . . . . . . . . . . . overwrite_iff 3 | . . . . . . . . . . . 3 . . . . . . . . . . . . . . . . . . . . . formatsys_high 3 | . . . . . . . . . . 3 . . . . . . . . . . . . . . . . . . . . . . Relay Couplers Released 37 | . . . . . . . . 18 . 8 8 . . . . . . . . . 3 . . . . . . . . . . . Machine Destruction 33 | . . . . . . . . 18 . 8 4 . . . . . . . . . 3 . . . . . . . . . . . Programmers 4 | . . . . . . . . . . . 4 . . . . . . . . . . . . . . . . . . . . . Attached 9 | . . . . . . . . . . 4 3 . . . . 1 . . . . 1 . . . . . . . . . . . Fabnet Peak Effective % . | . . . . . . . . . . . . . . . . . . . . . . . . . . . . . . . . . Robots Rewired 21 | . . . . . . . 1 8 . . . 4 . . . . 2 . . . . 2 . . 2 . . 2 . . . . Allies Hacked 3 | . . . . . . . . 1 . . 2 . . . . . . . . . . . . . . . . . . . . . Hacks Repelled . | . . . . . . . . . . . . . . . . . . . . . . . . . . . . . . . . . Allies | -11 -10 -10 -9 -9 -9 -8 -8 -8 -8 -8 -7 -7 -7 -7 -6 -6 -6 -6 -6 -5 -5 -5 -5 -5 -4 -4 -4 -4 -4 -3 -3 -3 -------- Run | Scr Mat Min Mat Min Exi Min Mat Gar Mat Gar Fac Low Low Zio Pro Fac Low Low Dat Pro Fac Upp Upp War Pro Fac Upp Upp Zhi Pro Res Qua Total Allies 41 | . . . . 5 . . 1 8 . 3 3 4 . . . 1 2 . . 1 5 2 . . 2 2 . 2 . . . . Largest Group 4 | . . . . 4 4 2 1 4 4 3 2 4 4 . . 1 2 . . 1 2 2 . . 2 2 . 2 . . . . Highest-Rated Group 148 | . . . . 73 73 24 18 148 66 48 32 106 106 . . 26 59 . . 96 98 58 . . 95 95 . 67 . . . . Highest-Rated Ally 96 | . . . . 31 31 16 18 39 18 21 16 31 31 . . 26 30 . . 96 49 29 . . 48 48 . 38 . . . . Total Orders 56 | . . . . . . . . . . . . 2 . . . 1 . . . . 13 12 9 . 12 5 . 2 . . . . STAY 2 | . . . . . . . . . . . . 1 . . . . . . . . 1 . . . . . . . . . . . FOLLOW 1 | . . . . . . . . . . . . 1 . . . . . . . . . . . . . . . . . . . . EXPLORE 49 | . . . . . . . . . . . . . . . . . . . . . 11 12 9 . 11 4 . 2 . . . . RETURN 4 | . . . . . . . . . . . . . . . . 1 . . . . 1 . . . 1 1 . . . . . . Ally Attacks 219 | . . . . 10 . 17 4 45 11 19 31 . 16 . . . 17 . . 6 20 13 . . . 7 . 3 . . . . Total Damage 4021 | . . . . 66 . 214 122 817 242 468 579 . 253 . . . 379 . . 137 426 150 . . . 168 . . . . . . Kills 44 | . . . . 5 . . 1 6 2 5 7 . 4 . . . 3 . . 1 5 3 . . . 2 . . . . . . Allies Corrupted 3 | . . . . . . . . . . . . . . . . . 2 . . . . . . . . . . 1 . . . . Allies Melted 1 | . . . . . . . . . . . . 1 . . . . . . . . . . . . . . . . . . . . Intel | -11 -10 -10 -9 -9 -9 -8 -8 -8 -8 -8 -7 -7 -7 -7 -6 -6 -6 -6 -6 -5 -5 -5 -5 -5 -4 -4 -4 -4 -4 -3 -3 -3 ------- Run | Scr Mat Min Mat Min Exi Min Mat Gar Mat Gar Fac Low Low Zio Pro Fac Low Low Dat Pro Fac Upp Upp War Pro Fac Upp Upp Zhi Pro Res Qua Robot Analysis Total 17 | . 2 . 5 . . . 2 . . . . . . . . 4 . . . . . . . . . . . . 4 . . . Derelict Logs Recovered 20 | . . . . 3 . . . . . . . 3 . . 2 . 1 2 . 1 . 2 1 . 1 . 1 3 . . . . Drone Launches 57 | . . . . . . . . . . . . . . . . 1 . . . . 21 12 6 . 11 3 . 3 . . . . Drone Recoveries 41 | . . . . . . . . . . . . . . . . 1 . . . . 9 12 6 . 11 2 . . . . . . Exploration | -11 -10 -10 -9 -9 -9 -8 -8 -8 -8 -8 -7 -7 -7 -7 -6 -6 -6 -6 -6 -5 -5 -5 -5 -5 -4 -4 -4 -4 -4 -3 -3 -3 ------------- Run | Scr Mat Min Mat Min Exi Min Mat Gar Mat Gar Fac Low Low Zio Pro Fac Low Low Dat Pro Fac Upp Upp War Pro Fac Upp Upp Zhi Pro Res Qua Turns Passed 70741 | 79 2234 646 2343 1588 1103 1427 1623 2277 155 929 9119 1135 1048 167 1642 7731 2733 2296 219 2535 10258 1360 1048 237 2774 6234 1343 1692 478 1408 805 75 Spaces Moved 35881 | 39 870 184 799 625 460 541 542 794 56 306 4417 703 675 112 855 6216 1260 921 92 929 5821 408 353 98 892 4451 501 605 231 662 336 127 Core 215 | . 1 . . . . . . . . . . . . . . 43 . . . . . . . . . . . . . . 44 127 Treads 15666 | . 656 184 278 625 460 541 337 663 56 306 791 . . . . 728 718 921 92 929 1978 408 353 98 892 1372 501 605 231 662 281 . Legs 588 | 39 213 . . . . . 205 131 . . . . . . . . . . . . . . . . . . . . . . . . Wheels 4548 | . . . 521 . . . . . . . 559 703 675 112 855 581 542 . . . . . . . . . . . . . . . Hover 861 | . . . . . . . . . . . . . . . . . . . . . 861 . . . . . . . . . . . Flight 14003 | . . . . . . . . . . . 3067 . . . . 4864 . . . . 2982 . . . . 3079 . . . . 11 . Fastest Speed 18 | 120 120 320 195 240 240 240 200 200 240 240 26 145 145 130 145 28 130 240 240 240 37 240 240 240 240 18 245 166 166 166 35 50 Average Speed 137 | 120 231 320 221 240 240 240 225 229 240 240 82 145 145 142 145 65 199 240 240 240 107 240 240 240 240 77 248 240 167 197 147 51 Slowest Speed 480 | 120 480 320 320 240 240 240 270 240 240 240 243 145 145 145 145 250 240 240 240 240 280 240 240 240 240 360 249 249 249 249 249 100 Overloaded Moves 461 | . . . . . . . . . . . 267 . . . . . . . . . . . . . . 194 . . . . . . Propulsion Burnouts . | . . . . . . . . . . . . . . . . . . . . . . . . . . . . . . . . . Robots Hopped 99 | . . . . . . . . . . . 21 . . . . 26 . . . . 29 . . . . 21 . . . . 2 . Cave-ins Triggered 1 | . . . . . . . 1 . . . . . . . . . . . . . . . . . . . . . . . . . Teleports 1 | . . . . . . . . . . . . . . . . . . . . . . . . . . . . . . . 1 . Exploration Rate (%) 67 | 3 97 48 94 99 79 100 53 87 12 42 62 83 75 13 76 81 98 96 75 95 86 98 97 17 99 54 65 83 60 70 11 18 Regions Visited 32 Branch Regions 21 Pre-discovered Areas 9 | . . . 1 . . . . . . . . . . . 1 . . . 1 1 . 1 . . . . . 1 3 . . . Known Exits Taken 14 | . . . . . . . 1 . 1 . 1 . . . 1 1 . . . 1 1 . . . 1 1 1 1 1 1 1 . Unknown Exits Taken 16 | 1 1 1 1 1 1 1 . . . . . 1 1 1 . . 1 1 1 . . 1 1 1 . . . . . . . . Scrap Searched 37 | . . 2 . 1 . 1 . . . . . 3 4 . 3 . 5 5 . 1 . 1 1 . 1 . 2 4 . 3 . . Spaces Dug 559 | . . . 5 8 . . 17 20 . 4 102 . . . 1 100 . 1 . 37 105 8 . . 2 132 3 2 . . 12 . Terrain Destroyed 3656 | . 19 44 5 16 . . 24 29 2 34 644 31 23 . 20 585 145 32 . 149 445 149 33 . 86 591 91 283 . 122 54 . Melee 209 | . . . 5 . . . 5 4 . 4 74 . . . . 58 . . . . 59 . . . . . . . . . . . Projectile 658 | . . . . . . . 7 . 2 . 64 3 3 . 15 70 8 6 . 44 122 18 4 . 24 201 13 10 . 4 40 . AOE 2789 | . 19 44 . 16 . . 12 25 . 30 506 28 20 . 5 457 137 26 . 105 264 131 29 . 62 390 78 273 . 118 14 . Terrain Rammed . | . . . . . . . . . . . . . . . . . . . . . . . . . . . . . . . . . Walls Destroyed . | . . . . . . . . . . . . . . . . . . . . . . . . . . . . . . . . . Machines Disabled . | . . . . . . . . . . . . . . . . . . . . . . . . . . . . . . . . . Actions | -11 -10 -10 -9 -9 -9 -8 -8 -8 -8 -8 -7 -7 -7 -7 -6 -6 -6 -6 -6 -5 -5 -5 -5 -5 -4 -4 -4 -4 -4 -3 -3 -3 --------- Run | Scr Mat Min Mat Min Exi Min Mat Gar Mat Gar Fac Low Low Zio Pro Fac Low Low Dat Pro Fac Upp Upp War Pro Fac Upp Upp Zhi Pro Res Qua Total 53232 | 52 1009 214 1151 671 460 592 777 1081 69 446 9076 790 735 120 1228 9267 1434 978 91 1143 9296 740 547 101 1462 6660 583 782 301 721 520 135 Wait 11153 | . 7 . 146 11 . 2 48 14 . 76 3391 29 48 . 339 2076 49 23 . 114 2459 233 168 . 479 1267 24 97 4 10 39 . Move 35660 | 38 869 183 798 624 459 540 541 793 56 305 4377 702 674 111 854 6165 1259 920 91 928 5764 407 352 97 891 4409 500 604 230 661 331 127 Hop 91 | . . . . . . . . . . . 18 . . . . 24 . . . . 27 . . . . 20 . . . . 2 . Pick Up 774 | . 36 3 23 1 1 3 16 26 2 5 195 1 . . . 116 12 3 . 3 130 4 5 . 1 159 10 3 6 1 8 1 Fast Attach 375 | 2 11 1 5 1 . . 11 9 . 2 42 1 . 4 3 62 11 2 . 1 91 . 2 2 . 72 4 4 12 6 13 1 Attach 244 | . 1 4 2 2 . 5 5 8 . 1 28 . . . . 35 5 . . 1 53 2 . . . 61 4 2 3 3 17 2 Detach 119 | 1 . . . . . . 1 2 . . 15 . . 1 1 31 . . . . 46 . . . . 16 1 1 1 1 . 1 Swap 581 | 1 9 2 27 3 . 3 26 19 . 12 145 6 7 . 7 96 4 9 . 13 76 16 2 . 8 63 4 8 . 7 8 . Drop 955 | . 22 2 32 . . . 35 39 2 2 204 2 1 4 4 148 21 6 . 4 188 4 7 2 2 163 15 5 17 4 19 1 Fire 2637 | 10 54 19 108 28 . 37 86 100 9 37 510 19 5 . 19 385 46 15 . 70 348 41 11 . 53 429 21 50 27 28 70 2 Melee 401 | . . . 6 1 . . 6 38 . 6 127 . . . . 129 . . . . 88 . . . . . . . . . . . Ram 14 | . . . 2 . . . . . . . . . . . . . . . . . . . . . . 1 . . . . 11 . Kick 1 | . . . . . . . 1 . . . . . . . . . . . . . . . . . . . . . . . . . Crush 9 | . . . 2 . . 2 1 . . . 2 . . . . . . . . . . . . . . . . . . . 2 . Escape Stasis 56 | . . . . . . . . 13 . . 22 . . . . . . . . . 21 . . . . . . . . . . . Rewire 140 | . . . . . . . . 20 . . . 30 . . 1 . 27 . . . . 33 . . 20 . . 8 1 . . . Trap 17 | . . . . . . . . . . . . . . . . . . . . 9 . . . . 8 . . . . . . . Miscellaneous 5 | . . . . . . . . . . . . . . . . . . . . . 5 . . . . . . . . . . . Route ------- -11/Scrapyard -10/Materials (discovered 5 exits: *Mat x3 / [*Min x2]) -10/Mines -9/Materials (discovered 7 exits: *Mat x3 / [*Min x2] / [*Sto x2]) -9/Mines (discovered 4 exits: *Mat x2 / *Exi / [*Zio]) -9/Exiles -8/Mines (discovered 2 exits: *Mat x2) -8/Materials (discovered 3 exits: *Fac x2 / Gar) -8/Garrison (discovered 3 exits: *Mat x3) -8/Materials -8/Garrison -7/Factory (discovered 4 exits: *Fac x2 / *Low / Gar) -7/Lower Caves -7/Lower Caves (discovered 2 exits: *Fac / [*Zio]) -7/Zion -6/Proximity Caves -6/Factory (discovered 6 exits: *Fac x4 / *Low x2) -6/Lower Caves -6/Lower Caves (discovered 2 exits: *Fac / *Dat) -6/Data Miner -5/Proximity Caves -5/Factory (discovered 6 exits: *Fac x4 / *Upp x2) -5/Upper Caves -5/Upper Caves (discovered 2 exits: *Fac / [*War]) -5/Warlord -4/Proximity Caves -4/Factory (discovered 7 exits: *Res x2 / *Upp x2 / Ext x2 / *Arm) -4/Upper Caves -4/Upper Caves -4/Zhirov -3/Proximity Caves -3/Research (discovered 2 exits: *Qua x2) -3/Quarantine History --------- Turn | Location | Event 28 | -11/Scrapyard | Discovered new exit (range 3) 80 | -11/Scrapyard | Entered Materials 196 | -10/Materials | Discovered new exit (range 10) 304 | -10/Materials | Build established: Mutant 364 | -10/Materials | Discovered new exit (range 3) 413 | -10/Materials | Central database locked down 582 | -10/Materials | Discovered new exit (range 8) 1184 | -10/Materials | Discovered new exit (range 16) 1602 | -10/Materials | Discovered new exit (range 3) 2314 | -10/Materials | Entered Mines 2320 | -10/Mines | Met a Derelict bent on vengeance 2501 | -10/Mines | Found a damaged Exp. Sensor Array with a note attached 2514 | -10/Mines | Found Prototype Device 2858 | -10/Mines | Assembled infested the area 2892 | -10/Mines | Core integrity fell below 50% 2901 | -10/Mines | System corruption reached 10% 2902 | -10/Mines | Core integrity fell below 20% 2926 | -10/Mines | Lost 4 parts (2n2w) 2929 | -10/Mines | Discovered new exit (range 8) 2931 | -10/Mines | Destroyed 17 combat bots 2960 | -10/Mines | Entered Materials 2960 | -9/Materials | Evolved 2 slots: Propulsion x1, Utility x1 3299 | -9/Materials | Discovered new exit (range 6) 3416 | -9/Materials | Discovered new exit (range 5) 3497 | -9/Materials | Central database locked down 3789 | -9/Materials | Discovered new exit (range 15) 3810 | -9/Materials | Discovered new exit (range 16) 3941 | -9/Materials | Discovered new exit (range 9) 4332 | -9/Materials | Discovered new exit (range 12) 4684 | -9/Materials | Discovered new exit (range 11) 5303 | -9/Materials | Entered Mines 5309 | -9/Mines | A Derelict revealed a hidden shortcut to a safe place 5342 | -9/Mines | Discovered new exit (range 10) 5427 | -9/Mines | Learned location of 1 exit from Materials 5702 | -9/Mines | Discovered new exit (range 6) 6023 | -9/Mines | Assisted by bots powering up and referring to "LRC-V3" 6193 | -9/Mines | Learned Materials garrison access intel 6622 | -9/Mines | Deemed a non-threat by the Exiles lab entrance 6622 | -9/Mines | Discovered new exit (range 5) 6891 | -9/Mines | Entered Exiles 6891 | -9/Exiles | Found Exiles lab abandoned 6891 | -9/Exiles | Accompanied by 4 allies 6921 | -9/Exiles | Led the pair of lost Derelicts to a safe place 7975 | -9/Exiles | Discovered new exit (range 10) 7994 | -9/Exiles | Entered Mines 7994 | -8/Mines | Accompanied by 2 allies 8067 | -8/Mines | Discovered new exit (range 8) 8142 | -8/Mines | Discovered new exit (range 7) 8297 | -8/Mines | Core integrity fell below 50% 9217 | -8/Mines | Build established: Scavenger-Mutant 9421 | -8/Mines | Entered Materials 9421 | -8/Materials | Evolved 2 slots: Propulsion x1, Utility x1 9422 | -8/Materials | Identified exit to Factory 9423 | -8/Materials | Loaded intel: 1 garrison access location 9999 | -8/Materials | Crushed by falling debris 10193 | -8/Materials | Discovered exit to Factory (range 10) 10691 | -8/Materials | Build established: Mutant 10892 | -8/Materials | Garrison activated, responded to threat 10980 | -8/Materials | Identified exit to Garrison 11044 | -8/Materials | Entered Garrison 11044 | -8/Garrison | Warlord forces raided the area 11060 | -8/Garrison | Warlord forces retreated 11064 | -8/Garrison | Triggered checkpoint 11090 | -8/Garrison | Triggered checkpoint 11186 | -8/Garrison | Triggered checkpoint 11381 | -8/Garrison | Garrison Relay disabled 11436 | -8/Garrison | Installed Relay Interface Framework 11769 | -8/Garrison | System corruption reached 10% 11808 | -8/Garrison | Learned Materials security intel 11902 | -8/Garrison | Core integrity fell below 50% 11968 | -8/Garrison | Discovered new exit (range 13) 11986 | -8/Garrison | Triggered checkpoint 12019 | -8/Garrison | Build established: Hauler-Mutant 12042 | -8/Garrison | Garrison Relay disabled 12137 | -8/Garrison | Garrison Relay disabled 12414 | -8/Garrison | Discovered new exit (range 15) 12471 | -8/Garrison | Expanded RIF knowledge: Zone Cloak 12709 | -8/Garrison | Triggered checkpoint 12753 | -8/Garrison | Garrison Relay disabled 12965 | -8/Garrison | Discovered new exit (range 12) 12994 | -8/Garrison | Triggered checkpoint 13035 | -8/Garrison | Garrison Relay disabled 13321 | -8/Garrison | Entered Materials 13321 | -8/Materials | Accompanied by 4 allies 13476 | -8/Materials | Identified exit to Garrison 13476 | -8/Materials | Entered Garrison 13476 | -8/Garrison | Accompanied by 3 allies 13560 | -8/Garrison | Triggered checkpoint 13617 | -8/Garrison | Expanded RIF knowledge: Patrol Navigation 13641 | -8/Garrison | Garrison Relay disabled 13770 | -8/Garrison | Triggered checkpoint 13776 | -8/Garrison | Triggered checkpoint 13824 | -8/Garrison | Destroyed 8 combat bots 13894 | -8/Garrison | Triggered checkpoint 13990 | -8/Garrison | Garrison Relay disabled 14083 | -8/Garrison | Discovered exit to Factory (range 10) 14238 | -8/Garrison | Core integrity fell below 20% 14405 | -8/Garrison | Entered Factory 14405 | -7/Factory | Accompanied by 1 ally 14405 | -7/Factory | Evolved 2 slots: Utility x2 14405 | -7/Factory | Identified Exp. Sensor Array 14406 | -7/Factory | Identified exit to Lower Caves 14693 | -7/Factory | Repaired Lyr. Light Armor Plating 15137 | -7/Factory | Build established: Bothacker-Mutant 15461 | -7/Factory | Build established: Hauler-Mutant 15654 | -7/Factory | Discovered new exit (range 14) 16077 | -7/Factory | Identified exit to Factory 16169 | -7/Factory | Identified exit to Garrison 16255 | -7/Factory | Build established: Sprinter 16765 | -7/Factory | Discovered exit to Factory (range 9) 17232 | -7/Factory | First assault squad dispatched 17605 | -7/Factory | Search patrols dispatched 17788 | -7/Factory | Build established: Mutant 18610 | -7/Factory | Destroyed 10 combat bots 20233 | -7/Factory | Destroyed 7 combat bots 20642 | -7/Factory | Destroyed 7 combat bots 21319 | -7/Factory | Destroyed 9 combat bots 21751 | -7/Factory | Destroyed 10 combat bots 22176 | -7/Factory | High security lockdown imminent 22256 | -7/Factory | High security lockdown engaged 22412 | -7/Factory | Sterilization system engaged 22412 | -7/Factory | Non-combat units ordered to evacuate 22418 | -7/Factory | System corruption reached 10% 22484 | -7/Factory | Destroyed 26 combat bots 22499 | -7/Factory | Lost 5 parts (2n2u1w) 22512 | -7/Factory | Combat units ordered to evacuate 22534 | -7/Factory | Destroyed 7 combat bots 22712 | -7/Factory | Ambient heat levels rising (+10) 22857 | -7/Factory | Build established: Hauler-Mutant 22862 | -7/Factory | Ambient heat levels rising (+10) 23012 | -7/Factory | Ambient heat levels rising (+10) 23162 | -7/Factory | Ambient heat levels rising (+10) 23312 | -7/Factory | Ambient heat levels rising (+10) 23462 | -7/Factory | Ambient heat levels rising (+10) 23524 | -7/Factory | Entered Lower Caves 24101 | -7/Lower Caves | Attacked by a delusional Derelict stockpiling Unaware 24316 | -7/Lower Caves | Learned Factory emergency access door positions 24414 | -7/Lower Caves | Learned Factory trap positions 24524 | -7/Lower Caves | Encountered a Warlord checkpoint 24524 | -7/Lower Caves | Discovered new exit (range 11) 24659 | -7/Lower Caves | Entered another Lower Caves area 24659 | -7/Lower Caves | Accompanied by 4 allies 24734 | -7/Lower Caves | Discovered exit to Factory (range 14) 25426 | -7/Lower Caves | Discovered new exit (range 12) 25457 | -7/Lower Caves | Attracted the attention of an 0b10 checkpoint 25707 | -7/Lower Caves | Entered Zion 25755 | -7/Zion | System corruption cleaned by Quarantine Array 25836 | -7/Zion | Discovered new exit (range 12) 25847 | -7/Zion | Given the Hacking Drone Bay 25847 | -7/Zion | Found Prototype Device 25847 | -7/Zion | Identified Hacking Drone Bay 25874 | -7/Zion | Entered Proximity Caves 26317 | -6/Proximity Caves | Spotted B-75 Beast 26988 | -6/Proximity Caves | Received a Behemoth hack from an annoying Tinkerer 27403 | -6/Proximity Caves | Discovered exit to Factory (range 15) 27516 | -6/Proximity Caves | Entered Factory 27516 | -6/Factory | Evolved 2 slots: Utility x1, Weapon x1 27517 | -6/Factory | Loaded intel: 67 trap records 27747 | -6/Factory | Discovered new exit (range 26) 28187 | -6/Factory | Identified exit to Lower Caves 28198 | -6/Factory | Found Unknown Device 28198 | -6/Factory | Identified Launcher Loader 28315 | -6/Factory | Repaired Imp. Heavy Treads? 28356 | -6/Factory | Identified exit to Factory 28537 | -6/Factory | Repaired Imp. Heavy Treads? 28713 | -6/Factory | Fabricated Adv. System Shield? 29090 | -6/Factory | Repaired Hrd. Heavy Armor Plating? 29148 | -6/Factory | Lost 3 parts (3n) 29279 | -6/Factory | Repaired Imp. Light Armor Plating? 29518 | -6/Factory | Spotted B-75 Beast 29525 | -6/Factory | Build established: Hacker-Scout 29820 | -6/Factory | Imp. Hacking Suite fried by hacking feedback 30303 | -6/Factory | Repaired Unknown Treads 30666 | -6/Factory | Search patrols dispatched 30732 | -6/Factory | Fabricated Imp. Heavy Treads? 30755 | -6/Factory | Fabricated Imp. Heavy Treads? 30812 | -6/Factory | Fabricated Imp. Heavy Treads? 31016 | -6/Factory | Search patrols dispatched 31281 | -6/Factory | Build established: Mutant 31366 | -6/Factory | Search patrols dispatched 32596 | -6/Factory | Destroyed 7 combat bots 32766 | -6/Factory | First assault squad dispatched 33625 | -6/Factory | High security lockdown imminent 33705 | -6/Factory | High security lockdown engaged 33878 | -6/Factory | Destroyed 14 combat bots 33978 | -6/Factory | Destroyed 7 combat bots 34094 | -6/Factory | Destroyed 14 combat bots 34178 | -6/Factory | Sterilization system engaged 34178 | -6/Factory | Non-combat units ordered to evacuate 34201 | -6/Factory | Destroyed 15 combat bots 34278 | -6/Factory | Combat units ordered to evacuate 34332 | -6/Factory | Destroyed 23 combat bots 34389 | -6/Factory | Destroyed 9 combat bots 34478 | -6/Factory | Ambient heat levels rising (+10) 34628 | -6/Factory | Ambient heat levels rising (+10) 34778 | -6/Factory | Ambient heat levels rising (+10) 34928 | -6/Factory | Ambient heat levels rising (+10) 35064 | -6/Factory | Build established: Hauler-Mutant 35078 | -6/Factory | Ambient heat levels rising (+10) 35228 | -6/Factory | Ambient heat levels rising (+10) 35247 | -6/Factory | Entered Lower Caves 35869 | -6/Lower Caves | Attracted the attention of an 0b10 outpost 35902 | -6/Lower Caves | Destroyed 7 combat bots 36996 | -6/Lower Caves | Build established: Hauler-Tank 37142 | -6/Lower Caves | Learned Factory interactive machine intel 37490 | -6/Lower Caves | Build established: Hauler-Mutant 37793 | -6/Lower Caves | Discovered new exit (range 7) 37794 | -6/Lower Caves | Encountered a Warlord checkpoint 37980 | -6/Lower Caves | Entered another Lower Caves area 38018 | -6/Lower Caves | Discovered exit to Factory (range 7) 38592 | -6/Lower Caves | Encountered a Warlord checkpoint 38651 | -6/Lower Caves | Learned Factory stockpile data 38670 | -6/Lower Caves | Build established: Hauler-Tank 38847 | -6/Lower Caves | Attracted the attention of an 0b10 checkpoint 38970 | -6/Lower Caves | Discovered new exit (range 5) 39952 | -6/Lower Caves | Learned Factory stockpile data 40276 | -6/Lower Caves | Entered Data Miner 40276 | -6/Data Miner | Discovered new exit (range 6) 40308 | -6/Data Miner | Met Data Miner 40380 | -6/Data Miner | Learned location of Section 7 (-2) 40380 | -6/Data Miner | Acquired the access code to Warlord's prototype stash 40430 | -6/Data Miner | Received God Mode back door access code from Data Miner 40495 | -6/Data Miner | Entered Proximity Caves 40835 | -5/Proximity Caves | Attracted the attention of an 0b10 base 40869 | -5/Proximity Caves | Destroyed 12 combat bots 40931 | -5/Proximity Caves | Build established: Hauler-Mutant 40955 | -5/Proximity Caves | Learned 6 Lower Caves zone layouts 41137 | -5/Proximity Caves | Core integrity fell below 50% 41379 | -5/Proximity Caves | Learned 8 Factory zone layouts 41711 | -5/Proximity Caves | Build established: Hauler-Skirmisher 42691 | -5/Proximity Caves | Build established: Hauler-Mutant 42952 | -5/Proximity Caves | Discovered exit to Factory (range 12) 43030 | -5/Proximity Caves | Entered Factory 43030 | -5/Factory | Evolved 2 slots: Power x1, Utility x1 43031 | -5/Factory | Identified exit to Upper Caves 43032 | -5/Factory | Identified exit to Factory 43034 | -5/Factory | Loaded intel: 52 interactive machine locations 44515 | -5/Factory | Build established: Hacker-Mutant 44518 | -5/Factory | Repaired Cargo Storage Unit 44550 | -5/Factory | Repaired Imp. Heavy Treads 45285 | -5/Factory | Discovered exit to Factory (range 22) 45798 | -5/Factory | Spotted B-75 Beast 45860 | -5/Factory | Build established: Hacker-Scout 45862 | -5/Factory | Fabricated Lgt. Regenerative Plating? 46105 | -5/Factory | Discovered exit to Upper Caves (range 6) 46172 | -5/Factory | Discovered exit to Factory (range 9) 46186 | -5/Factory | System corruption reached 10% 46330 | -5/Factory | Incoming investigation squad redirected 46330 | -5/Factory | Search patrols dispatched 46425 | -5/Factory | Build established: Hacker-Mutant 46450 | -5/Factory | Fabricated Tiamat Missile Launcher? 46463 | -5/Factory | Incoming investigation squad redirected 46477 | -5/Factory | Fabricated Tiamat Missile Launcher? 46541 | -5/Factory | Repaired Broken Tiamat Missile Launcher? 46612 | -5/Factory | Found Unknown Protection 46612 | -5/Factory | Identified Hvy. Insulated Plating 46630 | -5/Factory | Search patrols dispatched 46930 | -5/Factory | Search patrols dispatched 47255 | -5/Factory | Build established: Tank 47530 | -5/Factory | Search patrols dispatched 47830 | -5/Factory | First assault squad dispatched 47929 | -5/Factory | Core integrity fell below 50% 47955 | -5/Factory | Destroyed 8 combat bots 48210 | -5/Factory | Build established: Mutant 48643 | -5/Factory | Build established: Tank 49050 | -5/Factory | Incoming assault squad redirected 49056 | -5/Factory | Incoming assault squad redirected 49166 | -5/Factory | Build established: Mutant 49956 | -5/Factory | Incoming assault squad redirected 50187 | -5/Factory | Destroyed 12 combat bots 50248 | -5/Factory | Incoming assault squad redirected 50250 | -5/Factory | Incoming assault squad redirected 50545 | -5/Factory | Incoming assault squad redirected 50551 | -5/Factory | Incoming assault squad redirected 50975 | -5/Factory | High security lockdown imminent 51055 | -5/Factory | High security lockdown engaged 51276 | -5/Factory | Destroyed 22 combat bots 51358 | -5/Factory | Sterilization system engaged 51358 | -5/Factory | Non-combat units ordered to evacuate 51422 | -5/Factory | Destroyed 17 combat bots 51458 | -5/Factory | Combat units ordered to evacuate 51576 | -5/Factory | Destroyed 40 combat bots 51658 | -5/Factory | Ambient heat levels rising (+10) 51808 | -5/Factory | Ambient heat levels rising (+10) 51958 | -5/Factory | Ambient heat levels rising (+10) 51974 | -5/Factory | Build established: Hauler-Mutant 52108 | -5/Factory | Ambient heat levels rising (+10) 52258 | -5/Factory | Ambient heat levels rising (+10) 52408 | -5/Factory | Ambient heat levels rising (+10) 52558 | -5/Factory | Ambient heat levels rising (+10) 52687 | -5/Factory | Discovered exit to Factory (range 5) 52708 | -5/Factory | Ambient heat levels rising (+10) 52858 | -5/Factory | Ambient heat levels rising (+10) 52863 | -5/Factory | Build established: Hauler-Tank 53008 | -5/Factory | Ambient heat levels rising (+10) 53158 | -5/Factory | Ambient heat levels rising (+10) 53266 | -5/Factory | Build established: Hauler-Mutant 53288 | -5/Factory | Entered Upper Caves 53712 | -5/Upper Caves | Attracted the attention of an 0b10 outpost 53740 | -5/Upper Caves | Destroyed 7 combat bots 54329 | -5/Upper Caves | Discovered new exit (range 25) 54356 | -5/Upper Caves | Learned location of Armory (-4) 54456 | -5/Upper Caves | Learned Factory terminal intel 54648 | -5/Upper Caves | Entered another Upper Caves area 54691 | -5/Upper Caves | Discovered exit to Factory (range 25) 55056 | -5/Upper Caves | Discovered new exit (range 92) 55143 | -5/Upper Caves | Learned 4 Factory zone layouts 55170 | -5/Upper Caves | Build established: Hauler-Tank 55696 | -5/Upper Caves | Entered Warlord 55728 | -5/Warlord | Build established: Hauler-Mutant 55796 | -5/Warlord | System corruption cleaned by Quarantine Array 55852 | -5/Warlord | Discovered new exit (range 14) 55933 | -5/Warlord | Entered Proximity Caves 56130 | -4/Proximity Caves | Build established: Hauler-Tank 56890 | -4/Proximity Caves | Build established: Hauler-Mutant 56965 | -4/Proximity Caves | Discovered exit to Factory (range 62) 57052 | -4/Proximity Caves | Spotted B-86 Titan 57131 | -4/Proximity Caves | Destroyed B-86 Titan 57426 | -4/Proximity Caves | Build established: Hauler-Tank 58121 | -4/Proximity Caves | Attracted the attention of an 0b10 outpost 58339 | -4/Proximity Caves | Learned Research terminal intel 58358 | -4/Proximity Caves | Build established: Hauler-Mutant 58707 | -4/Proximity Caves | Entered Factory 58707 | -4/Factory | Accompanied by 2 allies 58707 | -4/Factory | Evolved 2 slots: Propulsion x2 58708 | -4/Factory | Identified exit to Extension 58709 | -4/Factory | Identified exit to Research 58711 | -4/Factory | Loaded intel: 28 terminal locations 58987 | -4/Factory | Found Unknown Launcher 58987 | -4/Factory | Identified Fusion Bomb Launcher 59455 | -4/Factory | Incoming investigation squad redirected 59686 | -4/Factory | Build established: Hacker-Sprinter 59850 | -4/Factory | Identified exit to Upper Caves 59850 | -4/Factory | Identified exit to Armory 59887 | -4/Factory | Repaired Tri-rail Accelerator? 60026 | -4/Factory | Build established: Hacker-Scout 60225 | -4/Factory | Discovered exit to Research (range 11) 60430 | -4/Factory | Incoming investigation squad redirected 60442 | -4/Factory | Fabricated Lyr. Heavy Armor Plating? 60506 | -4/Factory | Fabricated Lyr. Heavy Armor Plating? 60613 | -4/Factory | Build established: Hacker-Sprinter 60957 | -4/Factory | First assault squad dispatched 60984 | -4/Factory | Incoming assault squad redirected 61645 | -4/Factory | Destroyed 7 combat bots 61695 | -4/Factory | Build established: Mutant 61979 | -4/Factory | Incoming assault squad redirected 62235 | -4/Factory | Incoming assault squad redirected 62351 | -4/Factory | High security lockdown imminent 62431 | -4/Factory | High security lockdown engaged 62719 | -4/Factory | Lost 4 parts (3u1w) 62722 | -4/Factory | Destroyed 22 combat bots 62819 | -4/Factory | Destroyed 14 combat bots 62823 | -4/Factory | System corruption reached 10% 62962 | -4/Factory | Lost 7 parts (1p1n5u) 62963 | -4/Factory | Destroyed 21 combat bots 63113 | -4/Factory | Sterilization system engaged 63113 | -4/Factory | Non-combat units ordered to evacuate 63213 | -4/Factory | Combat units ordered to evacuate 63213 | -4/Factory | Lost 4 parts (1n3u) 63254 | -4/Factory | System corruption reached 30% 63278 | -4/Factory | Lost 5 parts (1p3u1w) 63283 | -4/Factory | Destroyed 28 combat bots 63413 | -4/Factory | Ambient heat levels rising (+10) 63563 | -4/Factory | Ambient heat levels rising (+10) 63595 | -4/Factory | Build established: Scavenger-Gunner 63713 | -4/Factory | Ambient heat levels rising (+10) 63863 | -4/Factory | Ambient heat levels rising (+10) 64013 | -4/Factory | Ambient heat levels rising (+10) 64037 | -4/Factory | Found Corrupted Active Sensor Suite 64084 | -4/Factory | Spotted B-86 Titan 64163 | -4/Factory | Ambient heat levels rising (+10) 64313 | -4/Factory | Ambient heat levels rising (+10) 64463 | -4/Factory | Ambient heat levels rising (+10) 64469 | -4/Factory | Spotted B-86 Titan 64613 | -4/Factory | Ambient heat levels rising (+10) 64763 | -4/Factory | Ambient heat levels rising (+10) 64913 | -4/Factory | Ambient heat levels rising (+10) 64941 | -4/Factory | Entered Upper Caves 65309 | -4/Upper Caves | Build established: Hauler-Mutant 65336 | -4/Upper Caves | Learned Research stockpile data 65694 | -4/Upper Caves | Encountered a Warlord checkpoint 66065 | -4/Upper Caves | Spotted B-86 Titan 66236 | -4/Upper Caves | Build established: Hauler-Skirmisher 66251 | -4/Upper Caves | Discovered new exit (range 4) 66258 | -4/Upper Caves | Identified exit to Upper Caves 66284 | -4/Upper Caves | Entered another Upper Caves area 66304 | -4/Upper Caves | Learned location of Quarantine (-3) 66335 | -4/Upper Caves | Attacked by a faux Warlord 66760 | -4/Upper Caves | Attracted the attention of an 0b10 outpost 66795 | -4/Upper Caves | Destroyed 11 combat bots 67230 | -4/Upper Caves | Learned Research stockpile data 67359 | -4/Upper Caves | Learned Research stockpile data 67482 | -4/Upper Caves | Discovered new exit (range 7) 67848 | -4/Upper Caves | Encountered a Warlord checkpoint 67932 | -4/Upper Caves | Build established: Hauler-Mutant 67974 | -4/Upper Caves | Identified exit to Zhirov 67976 | -4/Upper Caves | Entered Zhirov 67977 | -4/Zhirov | Discovered new exit (range 3) 68007 | -4/Zhirov | Met Zhirov 68044 | -4/Zhirov | Learned location of Testing (-2) 68056 | -4/Zhirov | Zhirov requested help retrieving the SGEMP Prototype 68081 | -4/Zhirov | Found Alien Artifact 68081 | -4/Zhirov | Identified Integrated Dissipator 68081 | -4/Zhirov | Installed Integrated Dissipator, increased core heat dissipation (+20) 68103 | -4/Zhirov | Found Alien Artifact 68251 | -4/Zhirov | Found Unknown Protection 68251 | -4/Zhirov | Identified Hvy. Reflective Plating 68451 | -4/Zhirov | Identified exit to Proximity Caves 68454 | -4/Zhirov | Entered Proximity Caves 68739 | -3/Proximity Caves | Build established: Hauler-Skirmisher 69208 | -3/Proximity Caves | Build established: Hauler-Mutant 69263 | -3/Proximity Caves | Discovered exit to Research (range 11) 69643 | -3/Proximity Caves | Core integrity fell below 50% 69862 | -3/Proximity Caves | Entered Research 69862 | -3/Research | Evolved 2 slots: Utility x2 69864 | -3/Research | Loaded intel: 24 terminal locations 69868 | -3/Research | Identified exit to Quarantine 70186 | -3/Research | Incoming investigation squad redirected 70462 | -3/Research | Incoming investigation squad redirected 70464 | -3/Research | Garrison activated, responded to threat 70529 | -3/Research | Destroyed 8 combat bots 70529 | -3/Research | System corruption reached 10% 70623 | -3/Research | Identified Transdimensional Reconstructor 70623 | -3/Research | Warped through subspace 70628 | -3/Research | Released all parts (10) 70641 | -3/Research | Lost 15 parts (2p3n6u4w) 70643 | -3/Research | Core integrity fell below 50% 70664 | -3/Research | Core integrity fell below 20% 70667 | -3/Research | Entered Quarantine 70707 | -3/Quarantine | Found Alien Artifact 70707 | -3/Quarantine | Identified Phase Redirector 70742 | -3/Quarantine | Destroyed by S-43 Plague with Heavy Machine Gun Last Messages --------------- 70665_ Slammed into A-15 Conveyor. 70666_ Slug penetrates A-15 Conveyor. 70666_ Slug penetrates Wall. 70666_ Penetrated by Slug. 70667_ Slug penetrates H-77 Assassin. LOCATION=QUARANTINE AMBIENT_HEAT=-20 GOAL=ESCAPE 70672_ Connecting with Terminal... 70675_ Acquired Unknown Energy Gun. 70691_ System corrupted: IFF burst signal emitted. 70704_ Suspension Chamber breached. 70707_ Acquired Alien Artifact. 70707_ Identified Phase Redirector. 70708_ Dropped Phase Redirector. 70710_ System corrupted: Matter fused (-7). 70713_ W-44 Eye sends out distress signal. 70715_ Identified Imp. Arc Projector. 70721_ Imp. Arc Projector destroyed. 70738_ Detecting nearby Garrison Access. Map ----- +----------------------------------------------------+ | ?????????????????????????????????????????????????? | | ?????????????????????????????????????????????????? | | ?????????????????????????????????????????????????? | | ?????????????????????????????????????????????????? | | ?????????????????????????????????????????????????? | | ?????????????????????????????????????????????????? | | ?????????????????????????????????????????????????? | | ?????????????????????????????????????????????????? | | ?????????????????????????????????????????????????? | | ?????????????????????????????????????????????????? | | ?????????????????????????????????????????????????? | | ?????????????????????????????????????????????????? | | ?????????????????????????????????????????????????? | | ?????????????????????????????????? ??????????????? | | ????????????????????????####????? ?????????????? | | ???????????????????????? ??? #?????????????? | | ???????????????????????? #?????????????? | | ???????????????????????? """ #?????????????? | | ???????????????????????? "G #?????????????? | | ????????????????????????# """ #?????????????? | | ????????????????????????# #?????????????? | | ????????????????????????# #?????????????? | | ????????????????????????# ??????????????? | | ????????????????????????# """ #?????????????? | | ##################??????#! """ #?????????????? | | #??????#@ """ #?????????????? | | #??????# #?????????????? | | #??????# """ #?????????????? | | #??????# """ ##????????????? | | ###### ### #??????# k""" #????????????? | | # #?# #??????# #????????????? | | "" # #?# ########s +????????????? | | "" # #?# #????????????? | | """ # #?# #########+##### #????????????? | | !"" # #?# #?????????????? #????????????? | | "" / #?# #??????????????? #????????????? | | # #?######???????????????? ???????????? | | # #???????????????????????? ???????????? | | ###### #??????????????????????????????????????? | | #??????????????????????????????????????? | | #??????????????????????????????????????? | | #??????????????????????????????????????? | | #??????????????????????????????????????? | | ###########??????????????????????????????????????? | | #????????????????????????????????????????????? | | ""#????????????????????????????????????????????? | | ""#????????????????????????????????????????????? | | " ""#????????????????????????????????????????????? | | " T#????????????????????????????????????????????? | | " ""#????????????????????????????????????????????? | +----------------------------------------------------+ Best States ------------- Heat Dissipation 155 Energy Generation 41 Energy Capacity 1060 Matter Stores 538 Matter Capacity 550 Sight Range 22 Robot Scan Range 20 Terrain Scan Range 16 Terrain Scan Density 210 Jamming Range 14 EM Shielding 3 Corruption Containment 8 Armor Coverage 2250 Resistance: KI 30 Resistance: TH 25 Resistance: EM 15 Core Shielding 30 Propulsion Shielding 33 Evasion (%) 66 Targeting Accuracy 8 Recoil Reduction 6 Particle Charging 20 Kinecelleration 40 Force Boost 20 Offensive Hacking 24 Defensive Hacking 40 Relay Coupler Types 2 Relay Coupler Value 44 Trap Extractor Capacity 6 Item Schematics ----------------- Hvy. Missile Launcher | -6/Factory | Scanalyzed Field Propulsion Drive | -6/Factory | Hacked Imp. Heavy Treads | -6/Factory | Hacked Combat Drone Bay | -6/Data Miner | Free Lgt. Regenerative Plating | -6/Data Miner | Free Enh. Flexi-carbon Leg | -6/Data Miner | Free Prc. Energy Filter | -6/Data Miner | Free Hvy. Proton Cannon | -6/Data Miner | Free Myomer Leg | -6/Data Miner | Free Imp. Force Field | -6/Data Miner | Free Hvy. Gauss Cannon | -6/Data Miner | Free Adv. Remote Datajack | -6/Data Miner | Free Q-thruster | -6/Data Miner | Free KE Penetrator | -6/Data Miner | Free Tri-rail Accelerator | -5/Factory | Scanalyzed Lyr. Heavy Armor Plating | -5/Factory | Hacked Tiamat Missile Launcher | -5/Factory | Scanalyzed Assault Drone Bay | -4/Zhirov | Free Exp. Heat Sink | -4/Zhirov | Free Exp. Optical Array | -4/Zhirov | Free Imp. Arc Thrower | -4/Zhirov | Free Robot Schematics ------------------ R-10 Processor | -6/Data Miner | Free B-48 Gladiator | -6/Data Miner | Free A-15 Conveyor | -6/Data Miner | Free D-63 Destroyer | -6/Data Miner | Free Fabricated ------------ Adv. System Shield | x1 | -6/Factory | Preloaded Imp. Heavy Treads | x2 | -6/Factory Imp. Heavy Treads | x2 | -6/Factory Imp. Heavy Treads | x2 | -6/Factory Lgt. Regenerative Plating | x1 | -5/Factory Tiamat Missile Launcher | x1 | -5/Factory Tiamat Missile Launcher | x1 | -5/Factory Lyr. Heavy Armor Plating | x1 | -4/Factory Lyr. Heavy Armor Plating | x1 | -4/Factory Alien Tech Used ----------------- Integrated Dissipator Transdimensional Reconstructor Phase Redirector Achievements -------------- Infiltrator Production Line Challenges ------------ None Game ------ Seed BiocellSiegeRifle Manual? 0 Play Time 19:11:50 Cumulative 803.1 hours Start 2022.07.16 @ 17:27:11 End 2022.07.22 @ 21:04:01 Sessions 41 Manual Loads 0 Difficulty Rogue Special Mode None Game No. 188 Rogue 156 Adventurer 31 Explorer 1 Win Type - Total 38 Types 28/0/5/4/0/0/1/0/0 Lore% 85 Gallery% 88 Achievement% 76 Wizard Run 0 Options --------- ASCII 0 Keyboard 0 Movement Arrows Keybinds 0 Fullscreen 1 Font 20/Terminus Map View 66x50 Tactical HUD 1 Map Filters NONE Filters NONE Steam 1 RUN: b0a10b8a-ad1d-48ac-90b3-0eec73b2d566